Workbook

Sheet Linear
B1: Building Linear Approximations
B2: to the Cosine Function
B4: This graphing utility lets you try to
B5: build the best linear approximation
B6: to the cosine function
D7: y = cos x
C8: centered about x = 0
A11: Enter the interval for x:
C12: xMin = | D12: -1
C13: xMax = | D13: 2
A16: In the linear approximation cos x » a0 + b0x
A18: What is the constant coefficient a0 (-1 to 1)?
C19: 200 | F19: =(C19-0)/100-1 -> 1 | I19: The largest deviation at 200 evenly spaced points is | O19: =MAX(Calcs!E3:E203) -> 1.416146837
A21: What is the linear coefficient b0 (-2 to 2)? | I21: The sum of the squares of the 200 deviations is | O21: =Calcs!F205 -> 70.21837721
C22: 200 | F22: =2*(C22-0)/200-2 -> 0
A24: Your linear polynomial is y = | E24: =TEXT(aa00,"0.00")&" + " &TEXT(bb00,"0.00")&"x " -> 1.00 + 0.00x
A29: Click each item below for suggestions and investigations
C30: Item 1
C31: Item 2
C32: Item 3
C33: Item 4

Sheet Quad
B1: Building Quadratic Approximations
B2: to the Cosine Function
B4: This graphing utility lets you try to
B5: build the best quadratic approximation
B6: to the cosine function
D7: y = cos x
C8: centered about x = 0
A11: Enter the interval for x:
C12: xMin = | D12: -1
C13: xMax = | D13: 2
A16: In the quadratic approximation cos x » a0 + b0x + c0x2
A18: What is the constant coefficient a0 (-1 to 1)?
C19: 200 | F19: =(C19-0)/100-1 -> 1 | I19: The largest deviation at 200 evenly spaced points is | O19: =MAX(Calcs!L3:L203) -> 0.1838531635
A21: What is the linear coefficient b0 (-2 to 2)? | I21: The sum of the squares of the 200 deviations is | O21: =Calcs!M205 -> 0.6156101652
C22: 196 | F22: =(C22-0)/100-2 -> -0.04
A24: What is the quadratic coefficient c0 (-1 to 1)?
C25: 62 | F25: =(C25-0)/100-1 -> -0.38
A27: Your quadratic polynomial is y = | E27: =TEXT(a0,"0.00")&" +" &TEXT(b0,"0.00")&"x + "&TEXT(c0,"0.00")&"x^2" -> 1.00 +-0.04x + -0.38x^2
A32: Click each item below for suggestions and investigations
D33: Item 1
D34: Item 2
D35: Item 3
D36: Item 4
D37: Item 5

Sheet Cubic
B1: Building Cubic Approximations
B2: to the Cosine Function
B4: This graphing utility lets you try to
B5: build the best cubic approximation
B6: to the cosine function
D7: y = cos x
C8: centered about x = 0
A11: Enter the interval for x:
C12: xMin = | D12: -1
C13: xMax = | D13: 2
A16: In the cubic approximation cos x » a0 + b0x + c0x2 + d0x3
A18: What is the constant coefficient a0 (-1 to 1)?
C19: 200 | F19: =(C19-0)/100-1 -> 1 | I19: The largest deviation at 200 evenly spaced points is | O19: =MAX(Calcs!S3:S203) -> 0.2728023059
A21: What is the linear coefficient b0 (-2 to 2)? | I21: The sum of the squares of the 200 deviations is | O21: =Calcs!T205 -> 0.9100888747
C22: 200 | F22: =(C22-0)/100-2 -> 0.00
A24: What is the quadratic coefficient c0 (-1 to 1)?
C25: 39 | F25: =(C25-0)/100-1 -> -0.61
A27: What is the cubic coefficient d0 (-0.5 to 0.5)?
C28: 124 | F28: =(C28+0.5-0)/200-0.5 -> 0.12
A30: Your cubic polynomial is y = | E30: =TEXT(a00,"0.00")&" + "&TEXT(b00,"0.00")&"x + "&TEXT(c00,"0.00")&"x^2 + "&TEXT(d00,"0.00")&"x^3" -> 1.00 + 0.00x + -0.61x^2 + 0.12x^3
A35: Click each item below for suggestions and investigations
D36: Item 1
D37: Item 2
D38: Item 3
D39: Item 4
D40: Item 5

Sheet Quartic
B1: Building Quartic Approximations
B2: to the Cosine Function
B4: This graphing utility lets you try to
B5: build the best quartic approximation
B6: to the cosine function
D7: y = cos x
C8: centered about x = 0
A11: Enter the interval for x:
C12: xMin = | D12: -1
C13: xMax = | D13: 2
A16: In the quartic approximation cos x » a0 + b0x + c0x2 + d0x3 + e0x4
A18: What is the constant coefficient a0 (-1 to 1)?
C19: 198 | F19: =(C19-0)/100-1 -> 0.98 | I19: The largest deviation at 200 evenly spaced points is | O19: =MAX(Calcs!S3:S203) -> 0.2728023059
A21: What is the linear coefficient b0 (0 to 2)? | I21: The sum of the squares of the 200 deviations is | O21: =Calcs!T205 -> 0.9100888747
C22: 0 | F22: =(C22-0)/100 -> 0.00
A24: What is the quadratic coefficient c0 (-1 to 1)?
C25: 0 | F25: =(C25-0)/100-1 -> -1
A27: What is the cubic coefficient d0 (-0.5 to 0.5)?
C28: 138 | F28: =(C28+0.5-0)/200-0.5 -> 0.19
A30: What is the quartic coefficient e0 (-0.5 to 0.5)?
C31: 82 | F31: =(C31+0.5-0)/200-0.5 -> -0.09
A33: Your quartic polynomial is y = | E33: =TEXT(a000,"0.00")&" + "&TEXT(b000,"0.00")&"x + "&TEXT(c000,"0.00")&"x^2 + "&TEXT(d000,"0.00")&"x^3 +"&TEXT(e000,"0.00")&"x^4" -> 0.98 + 0.00x + -1.00x^2 + 0.19x^3 +-0.09x^4
A38: Click each item below for suggestions and investigations
C39: Item 1
C40: Item 2
C41: Item 3
C42: Item 4
C43: Item 5

Sheet Quintic
B1: Building Quintic Approximations
B2: to the Cosine Function
B4: This graphing utility lets you try to
B5: build the best quintic approximation
B6: to the cosine function
D7: y = cos x
C8: centered about x = 0
A11: Enter the interval for x:
C12: xMin = | D12: -1
C13: xMax = | D13: 2
A16: In the quartic approximation cos x » a0 + b0x + c0x2 + d0x3 + e0x4 + f0x5
A18: What is the constant coefficient a0 (-1 to 1)?
C19: 100 | F19: =(C19-0)/100-1 -> 0 | I19: The largest deviation at 200 evenly spaced points is | O19: =MAX(Calcs!AF3:AF203) -> 1.644146837
A21: What is the linear coefficient b0 (0 to 2)? | I21: The sum of the squares of the 200 deviations is | O21: =Calcs!AH205 -> 214.1189388
C22: 100 | F22: =(C22-0)/100 -> 1.00
A24: What is the quadratic coefficient c0 (-1 to 1)?
C25: 121 | F25: =(C25-0)/100-1 -> 0.21
A27: What is the cubic coefficient d0 (-0.5 to 0.5)?
C28: 69 | F28: =(C28+0.5-0)/200-0.5 -> -0.15
A30: What is the quartic coefficient e0 (-0.5 to 0.5)?
C31: 65 | F31: =(C31+0.5-0)/200-0.5 -> -0.17
A33: What is the quintic coefficient f0 (-0.2 to 0.2)?
C34: 137 | F34: =(C34)/500-0.2 -> 0.074
A36: Your quintic polynomial is y = | E36: =TEXT(a0000,"0.00")&" + "&TEXT(b0000,"0.00")&"x + "&TEXT(c0000,"0.00")&"x^2 + "&TEXT(d0000,"0.000")&"x^3 + "&TEXT(e0000,"0.000")&"x^4 + "&TEXT(f0000,"0.000")&"x^5 " -> 0.00 + 1.00x + 0.21x^2 + -0.153x^3 + -0.173x^4 + 0.074x^5
A41: Click each item below for suggestions and investigations
C42: Item 1
C43: Item 2
C44: Item 3
C45: Item 4
C46: Item 5

Sheet 6th Degree
B1: Building 6th Degree Approximations
B2: to the Cosine Function
B4: This graphing utility lets you try to
B5: build the best 6th degree approximation
B6: to the cosine function
D7: y = cos x
C8: centered about x = 0
A11: Enter the interval for x:
C12: xMin = | D12: -1
C13: xMax = | D13: 2
A16: In the 6th degree approximation cos x » a0 + b0x + c0x2 + d0x3 + e0x4 + f0x5 + g0x6
A18: What is the constant coefficient a0 (-1 to 1)?
C19: 100 | F19: =(C19-0)/100-1 -> 0 | I19: The largest deviation at 200 evenly spaced points is | O19: =MAX(Calcs!AM3:AM203) -> 8.300146837
A21: What is the linear coefficient b0 (0 to 2)? | I21: The sum of the squares of the 200 deviations is | O21: =Calcs!AO205 -> 1041.648615
C22: 100 | F22: =(C22-0)/100 -> 1.00
A24: What is the quadratic coefficient c0 (-1 to 1)?
C25: 121 | F25: =(C25-0)/100-1 -> 0.21
A27: What is the cubic coefficient d0 (-0.5 to 0.5)?
C28: 69 | F28: =(C28+0.5-0)/200-0.5 -> -0.15
A30: What is the quartic coefficient e0 (-0.5 to 0.5)?
C31: 65 | F31: =(C31+0.5-0)/200-0.5 -> -0.17
A33: What is the quintic coefficient f0 (-0.2 to 0.2)?
C34: 109 | F34: =(C34)/500-0.2 -> 0.018
A36: What is the 6th degree coefficient g0 (-0.2 to 0.2)?
C37: 152 | F37: =(C37)/500-0.2 -> 0.104
A39: Your 6th degree polynomial is y = | E39: =TEXT(a00000,"0.00")&" + "&TEXT(b0000,"0.00")&"x + "&TEXT(c00000,"0.00")&"x^2 + "&TEXT(d00000,"0.000")&"x^3 + "&TEXT(e00000,"0.000")&"x^4 + "&TEXT(f00000,"0.000")&"x^5 "&TEXT(g00000,"0.000")&"x^6 " -> 0.00 + 1.00x + 0.21x^2 + -0.153x^3 + -0.173x^4 + 0.018x^5 0.104x^6
A41: Click each item below for suggestions and investigations
C42: Item 1
C43: Item 2
C44: Item 3
C45: Item 4
C46: Item 5
C47: Item 6

Sheet Calcs
B1: Linear | I1: Quadatic | P1: Cubic | W1: Quartic | AD1: Quintic | AK1: 6th degree
A2: x | B2: cos x | C2: P1(x) | D2: Difference | E2: ABS | F2: Squares | H2: x | I2: cos x | J2: P2(x) | K2: Difference | L2: ABS | M2: Squares | O2: x | P2: cos x | Q2: P3(x) | R2: Difference | S2: ABS | T2: Squares | V2: x | W2: cos x | X2: P4(x) | Y2: Difference | Z2: ABS | AA2: Squares | AC2: x | AD2: cos x | AE2: P5(x) | AF2: Difference | AG2: ABS | AH2: Squares | AJ2: x | AK2: cos x | AL2: P6(x) | AM2: Difference | AN2: ABS | AO2: Squares
A3: =a -> -1 | B3: =COS(A3) -> 0.54030 | C3: =aa00+bb00*A3 -> 1.00000 | D3: =C3-B3 -> 0.45970 | E3: =ABS(D3) -> 0.45970 | F3: =D3^2 -> 0.2113 | H3: =a -> -1 | I3: =COS(H3) -> 0.54030 | J3: =a0+b0*A3+c0*A3^2 -> 0.66000 | K3: =J3-I3 -> 0.11970 | L3: =ABS(K3) -> 0.11970 | M3: =K3^2 -> 0.0143 | O3: =aa -> -1 | P3: =COS(O3) -> 0.54030 | Q3: =a00+b00*O3+c00*O3^2+d00*A3^3 -> 0.26750 | R3: =Q3-P3 -> -0.27280 | S3: =ABS(R3) -> 0.27280 | T3: =R3^2 -> 0.0744 | V3: =aaa -> -1 | W3: =COS(V3) -> 0.54030 | X3: =a000+b000*V3+c000*V3^2+d000*O3^3+e000*O3^4 -> -0.30000 | Y3: =X3-W3 -> -0.84030 | Z3: =ABS(Y3) -> 0.84030 | AA3: =Y3^2 -> 0.7061 | AC3: =aaaa -> -1 | AD3: =COS(AC3) -> 0.54030 | AE3: =a0000+b0000*AC3+c0000*AC3^2+d0000*AC3^3+e0000*AC3^4+f0000*AC3^5 -> -0.88400 | AF3: =AE3-AD3 -> -1.42430 | AG3: =ABS(AF3) -> 1.42430 | AH3: =AF3^2 -> 2.0286 | AJ3: =aaaaa -> -1 | AK3: =COS(AJ3) -> 0.54030 | AL3: =a0000+b0000*AJ3+c0000*AJ3^2+d0000*AJ3^3+e0000*AJ3^4+f0000*AJ3^5+g00000*AJ3^6 -> -0.78000 | AM3: =AL3-AK3 -> -1.32030 | AN3: =ABS(AM3) -> 1.32030 | AO3: =AM3^2 -> 1.7432
A4: =A3+(b-a)/200 -> -0.985 | B4: =COS(A4) -> 0.55286 | C4: 1.00000 | D4: =C4-B4 -> 0.44714 | E4: =ABS(D4) -> 0.44714 | F4: =D4^2 -> 0.1999 | H4: =H3+(b-a)/200 -> -0.985 | I4: =COS(H4) -> 0.55286 | J4: 0.67071 | K4: =J4-I4 -> 0.11785 | L4: =ABS(K4) -> 0.11785 | M4: =K4^2 -> 0.0139 | O4: =O3+(bb-aa)/200 -> -0.985 | P4: =COS(O4) -> 0.55286 | Q4: 0.29109 | R4: =Q4-P4 -> -0.26177 | S4: =ABS(R4) -> 0.26177 | T4: =R4^2 -> 0.0685 | V4: =V3+(bbb-aaa)/200 -> -0.985 | W4: =COS(V4) -> 0.55286 | X4: -0.25656 | Y4: =X4-W4 -> -0.80942 | Z4: =ABS(Y4) -> 0.80942 | AA4: =Y4^2 -> 0.6552 | AC4: =AC3+(bbbb-aaaa)/200 -> -0.985 | AD4: =COS(AC4) -> 0.55286 | AE4: -0.86651 | AF4: =AE4-AD4 -> -1.41937 | AG4: =ABS(AF4) -> 1.41937 | AH4: =AF4^2 -> 2.0146 | AJ4: =AJ3+(bbbbb-aaaaa)/200 -> -0.985 | AK4: =COS(AJ4) -> 0.55286 | AL4: -0.77152 | AM4: =AL4-AK4 -> -1.32439 | AN4: =ABS(AM4) -> 1.32439 | AO4: =AM4^2 -> 1.7540
A5: -0.97 | B5: 0.56530 | C5: 1.00000 | D5: 0.43470 | E5: 0.43470 | F5: 0.1890 | H5: -0.97 | I5: 0.56530 | J5: 0.68126 | K5: 0.11596 | L5: 0.11596 | M5: 0.0134 | O5: -0.97 | P5: 0.56530 | Q5: 0.31425 | R5: -0.25105 | S5: 0.25105 | T5: 0.0630 | V5: -0.97 | W5: 0.56530 | X5: -0.21405 | Y5: -0.77935 | Z5: 0.77935 | AA5: 0.6074 | AC5: -0.97 | AD5: 0.56530 | AE5: -0.84949 | AF5: -1.41479 | AG5: 1.41479 | AH5: 2.0016 | AJ5: -0.97 | AK5: 0.56530 | AL5: -0.76286 | AM5: -1.32816 | AN5: 1.32816 | AO5: 1.7640
A6: -0.955 | B6: 0.57761 | C6: 1.00000 | D6: 0.42239 | E6: 0.42239 | F6: 0.1784 | H6: -0.955 | I6: 0.57761 | J6: 0.69163 | K6: 0.11402 | L6: 0.11402 | M6: 0.0130 | O6: -0.955 | P6: 0.57761 | Q6: 0.33697 | R6: -0.24064 | S6: 0.24064 | T6: 0.0579 | V6: -0.955 | W6: 0.57761 | X6: -0.17247 | Y6: -0.75008 | Z6: 0.75008 | AA6: 0.5626 | AC6: -0.955 | AD6: 0.57761 | AE6: -0.83292 | AF6: -1.41052 | AG6: 1.41052 | AH6: 1.9896 | AJ6: -0.955 | AK6: 0.57761 | AL6: -0.75402 | AM6: -1.33163 | AN6: 1.33163 | AO6: 1.7732
A7: -0.94 | B7: 0.58979 | C7: 1.00000 | D7: 0.41021 | E7: 0.41021 | F7: 0.1683 | H7: -0.94 | I7: 0.58979 | J7: 0.70183 | K7: 0.11204 | L7: 0.11204 | M7: 0.0126 | O7: -0.94 | P7: 0.58979 | Q7: 0.35926 | R7: -0.23053 | S7: 0.23053 | T7: 0.0531 | V7: -0.94 | W7: 0.58979 | X7: -0.13180 | Y7: -0.72159 | Z7: 0.72159 | AA7: 0.5207 | AC7: -0.94 | AD7: 0.58979 | AE7: -0.81677 | AF7: -1.40656 | AG7: 1.40656 | AH7: 1.9784 | AJ7: -0.94 | AK7: 0.58979 | AL7: -0.74502 | AM7: -1.33481 | AN7: 1.33481 | AO7: 1.7817
A8: -0.925 | B8: 0.60183 | C8: 1.00000 | D8: 0.39817 | E8: 0.39817 | F8: 0.1585 | H8: -0.925 | I8: 0.60183 | J8: 0.71186 | K8: 0.11003 | L8: 0.11003 | M8: 0.0121 | O8: -0.925 | P8: 0.60183 | Q8: 0.38112 | R8: -0.22072 | S8: 0.22072 | T8: 0.0487 | V8: -0.925 | W8: 0.60183 | X8: -0.09204 | Y8: -0.69387 | Z8: 0.69387 | AA8: 0.4815 | AC8: -0.925 | AD8: 0.60183 | AE8: -0.80102 | AF8: -1.40285 | AG8: 1.40285 | AH8: 1.9680 | AJ8: -0.925 | AK8: 0.60183 | AL8: -0.73587 | AM8: -1.33771 | AN8: 1.33771 | AO8: 1.7895
A9: -0.91 | B9: 0.61375 | C9: 1.00000 | D9: 0.38625 | E9: 0.38625 | F9: 0.1492 | H9: -0.91 | I9: 0.61375 | J9: 0.72172 | K9: 0.10798 | L9: 0.10798 | M9: 0.0117 | O9: -0.91 | P9: 0.61375 | Q9: 0.40255 | R9: -0.21120 | S9: 0.21120 | T9: 0.0446 | V9: -0.91 | W9: 0.61375 | X9: -0.05317 | Y9: -0.66691 | Z9: 0.66691 | AA9: 0.4448 | AC9: -0.91 | AD9: 0.61375 | AE9: -0.78565 | AF9: -1.39940 | AG9: 1.39940 | AH9: 1.9583 | AJ9: -0.91 | AK9: 0.61375 | AL9: -0.72659 | AM9: -1.34034 | AN9: 1.34034 | AO9: 1.7965
A10: -0.895 | B10: 0.62552 | C10: 1.00000 | D10: 0.37448 | E10: 0.37448 | F10: 0.1402 | H10: -0.895 | I10: 0.62552 | J10: 0.73141 | K10: 0.10589 | L10: 0.10589 | M10: 0.0112 | O10: -0.895 | P10: 0.62552 | Q10: 0.42355 | R10: -0.20197 | S10: 0.20197 | T10: 0.0408 | V10: -0.895 | W10: 0.62552 | X10: -0.01518 | Y10: -0.64069 | Z10: 0.64069 | AA10: 0.4105 | AC10: -0.895 | AD10: 0.62552 | AE10: -0.77063 | AF10: -1.39615 | AG10: 1.39615 | AH10: 1.9492 | AJ10: -0.895 | AK10: 0.62552 | AL10: -0.71718 | AM10: -1.34270 | AN10: 1.34270 | AO10: 1.8028
A11: -0.88 | B11: 0.63715 | C11: 1.00000 | D11: 0.36285 | E11: 0.36285 | F11: 0.1317 | H11: -0.88 | I11: 0.63715 | J11: 0.74093 | K11: 0.10378 | L11: 0.10378 | M11: 0.0108 | O11: -0.88 | P11: 0.63715 | Q11: 0.44414 | R11: -0.19302 | S11: 0.19302 | T11: 0.0373 | V11: -0.88 | W11: 0.63715 | X11: 0.02194 | Y11: -0.61521 | Z11: 0.61521 | AA11: 0.3785 | AC11: -0.88 | AD11: 0.63715 | AE11: -0.75595 | AF11: -1.39310 | AG11: 1.39310 | AH11: 1.9407 | AJ11: -0.88 | AK11: 0.63715 | AL11: -0.70765 | AM11: -1.34480 | AN11: 1.34480 | AO11: 1.8085
A12: -0.865 | B12: 0.64864 | C12: 1.00000 | D12: 0.35136 | E12: 0.35136 | F12: 0.1235 | H12: -0.865 | I12: 0.64864 | J12: 0.75027 | K12: 0.10163 | L12: 0.10163 | M12: 0.0103 | O12: -0.865 | P12: 0.64864 | Q12: 0.46430 | R12: -0.18434 | S12: 0.18434 | T12: 0.0340 | V12: -0.865 | W12: 0.64864 | X12: 0.05820 | Y12: -0.59044 | Z12: 0.59044 | AA12: 0.3486 | AC12: -0.865 | AD12: 0.64864 | AE12: -0.74158 | AF12: -1.39022 | AG12: 1.39022 | AH12: 1.9327 | AJ12: -0.865 | AK12: 0.64864 | AL12: -0.69802 | AM12: -1.34666 | AN12: 1.34666 | AO12: 1.8135
A13: -0.85 | B13: 0.65998 | C13: 1.00000 | D13: 0.34002 | E13: 0.34002 | F13: 0.1156 | H13: -0.85 | I13: 0.65998 | J13: 0.75945 | K13: 0.09947 | L13: 0.09947 | M13: 0.0099 | O13: -0.85 | P13: 0.65998 | Q13: 0.48404 | R13: -0.17594 | S13: 0.17594 | T13: 0.0310 | V13: -0.85 | W13: 0.65998 | X13: 0.09361 | Y13: -0.56638 | Z13: 0.56638 | AA13: 0.3208 | AC13: -0.85 | AD13: 0.65998 | AE13: -0.72750 | AF13: -1.38748 | AG13: 1.38748 | AH13: 1.9251 | AJ13: -0.85 | AK13: 0.65998 | AL13: -0.68828 | AM13: -1.34826 | AN13: 1.34826 | AO13: 1.8178
A14: -0.835 | B14: 0.67118 | C14: 1.00000 | D14: 0.32882 | E14: 0.32882 | F14: 0.1081 | H14: -0.835 | I14: 0.67118 | J14: 0.76845 | K14: 0.09728 | L14: 0.09728 | M14: 0.0095 | O14: -0.835 | P14: 0.67118 | Q14: 0.50338 | R14: -0.16780 | S14: 0.16780 | T14: 0.0282 | V14: -0.835 | W14: 0.67118 | X14: 0.12817 | Y14: -0.54301 | Z14: 0.54301 | AA14: 0.2949 | AC14: -0.835 | AD14: 0.67118 | AE14: -0.71369 | AF14: -1.38487 | AG14: 1.38487 | AH14: 1.9179 | AJ14: -0.835 | AK14: 0.67118 | AL14: -0.67844 | AM14: -1.34962 | AN14: 1.34962 | AO14: 1.8215
A15: -0.82 | B15: 0.68222 | C15: 1.00000 | D15: 0.31778 | E15: 0.31778 | F15: 0.1010 | H15: -0.82 | I15: 0.68222 | J15: 0.77729 | K15: 0.09507 | L15: 0.09507 | M15: 0.0090 | O15: -0.82 | P15: 0.68222 | Q15: 0.52229 | R15: -0.15993 | S15: 0.15993 | T15: 0.0256 | V15: -0.82 | W15: 0.68222 | X15: 0.16190 | Y15: -0.52032 | Z15: 0.52032 | AA15: 0.2707 | AC15: -0.82 | AD15: 0.68222 | AE15: -0.70014 | AF15: -1.38236 | AG15: 1.38236 | AH15: 1.9109 | AJ15: -0.82 | AK15: 0.68222 | AL15: -0.66852 | AM15: -1.35074 | AN15: 1.35074 | AO15: 1.8245
A16: -0.805 | B16: 0.69311 | C16: 1.00000 | D16: 0.30689 | E16: 0.30689 | F16: 0.0942 | H16: -0.805 | I16: 0.69311 | J16: 0.78595 | K16: 0.09284 | L16: 0.09284 | M16: 0.0086 | O16: -0.805 | P16: 0.69311 | Q16: 0.54080 | R16: -0.15231 | S16: 0.15231 | T16: 0.0232 | V16: -0.805 | W16: 0.69311 | X16: 0.19481 | Y16: -0.49830 | Z16: 0.49830 | AA16: 0.2483 | AC16: -0.805 | AD16: 0.69311 | AE16: -0.68682 | AF16: -1.37993 | AG16: 1.37993 | AH16: 1.9042 | AJ16: -0.805 | AK16: 0.69311 | AL16: -0.65851 | AM16: -1.35163 | AN16: 1.35163 | AO16: 1.8269
A17: -0.79 | B17: 0.70385 | C17: 1.00000 | D17: 0.29615 | E17: 0.29615 | F17: 0.0877 | H17: -0.79 | I17: 0.70385 | J17: 0.79444 | K17: 0.09060 | L17: 0.09060 | M17: 0.0082 | O17: -0.79 | P17: 0.70385 | Q17: 0.55890 | R17: -0.14494 | S17: 0.14494 | T17: 0.0210 | V17: -0.79 | W17: 0.70385 | X17: 0.22691 | Y17: -0.47694 | Z17: 0.47694 | AA17: 0.2275 | AC17: -0.79 | AD17: 0.70385 | AE17: -0.67371 | AF17: -1.37755 | AG17: 1.37755 | AH17: 1.8977 | AJ17: -0.79 | AK17: 0.70385 | AL17: -0.64843 | AM17: -1.35227 | AN17: 1.35227 | AO17: 1.8286
A18: -0.775 | B18: 0.71442 | C18: 1.00000 | D18: 0.28558 | E18: 0.28558 | F18: 0.0816 | H18: -0.775 | I18: 0.71442 | J18: 0.80276 | K18: 0.08834 | L18: 0.08834 | M18: 0.0078 | O18: -0.775 | P18: 0.71442 | Q18: 0.57660 | R18: -0.13782 | S18: 0.13782 | T18: 0.0190 | V18: -0.775 | W18: 0.71442 | X18: 0.25820 | Y18: -0.45622 | Z18: 0.45622 | AA18: 0.2081 | AC18: -0.775 | AD18: 0.71442 | AE18: -0.66080 | AF18: -1.37522 | AG18: 1.37522 | AH18: 1.8912 | AJ18: -0.775 | AK18: 0.71442 | AL18: -0.63827 | AM18: -1.35269 | AN18: 1.35269 | AO18: 1.8298
A19: -0.76 | B19: 0.72484 | C19: 1.00000 | D19: 0.27516 | E19: 0.27516 | F19: 0.0757 | H19: -0.76 | I19: 0.72484 | J19: 0.81091 | K19: 0.08608 | L19: 0.08608 | M19: 0.0074 | O19: -0.76 | P19: 0.72484 | Q19: 0.59389 | R19: -0.13095 | S19: 0.13095 | T19: 0.0171 | V19: -0.76 | W19: 0.72484 | X19: 0.28871 | Y19: -0.43613 | Z19: 0.43613 | AA19: 0.1902 | AC19: -0.76 | AD19: 0.72484 | AE19: -0.64807 | AF19: -1.37291 | AG19: 1.37291 | AH19: 1.8849 | AJ19: -0.76 | AK19: 0.72484 | AL19: -0.62803 | AM19: -1.35287 | AN19: 1.35287 | AO19: 1.8303
A20: -0.745 | B20: 0.73509 | C20: 1.00000 | D20: 0.26491 | E20: 0.26491 | F20: 0.0702 | H20: -0.745 | I20: 0.73509 | J20: 0.81889 | K20: 0.08380 | L20: 0.08380 | M20: 0.0070 | O20: -0.745 | P20: 0.73509 | Q20: 0.61078 | R20: -0.12431 | S20: 0.12431 | T20: 0.0155 | V20: -0.745 | W20: 0.73509 | X20: 0.31842 | Y20: -0.41667 | Z20: 0.41667 | AA20: 0.1736 | AC20: -0.745 | AD20: 0.73509 | AE20: -0.63551 | AF20: -1.37060 | AG20: 1.37060 | AH20: 1.8785 | AJ20: -0.745 | AK20: 0.73509 | AL20: -0.61773 | AM20: -1.35282 | AN20: 1.35282 | AO20: 1.8301
A21: -0.73 | B21: 0.74517 | C21: 1.00000 | D21: 0.25483 | E21: 0.25483 | F21: 0.0649 | H21: -0.73 | I21: 0.74517 | J21: 0.82670 | K21: 0.08152 | L21: 0.08152 | M21: 0.0066 | O21: -0.73 | P21: 0.74517 | Q21: 0.62728 | R21: -0.11790 | S21: 0.11790 | T21: 0.0139 | V21: -0.73 | W21: 0.74517 | X21: 0.34737 | Y21: -0.39781 | Z21: 0.39781 | AA21: 0.1583 | AC21: -0.73 | AD21: 0.74517 | AE21: -0.62309 | AF21: -1.36827 | AG21: 1.36827 | AH21: 1.8722 | AJ21: -0.73 | AK21: 0.74517 | AL21: -0.60735 | AM21: -1.35253 | AN21: 1.35253 | AO21: 1.8293
A22: -0.715 | B22: 0.75509 | C22: 1.00000 | D22: 0.24491 | E22: 0.24491 | F22: 0.0600 | H22: -0.715 | I22: 0.75509 | J22: 0.83433 | K22: 0.07924 | L22: 0.07924 | M22: 0.0063 | O22: -0.715 | P22: 0.75509 | Q22: 0.64338 | R22: -0.11172 | S22: 0.11172 | T22: 0.0125 | V22: -0.715 | W22: 0.75509 | X22: 0.37554 | Y22: -0.37955 | Z22: 0.37955 | AA22: 0.1441 | AC22: -0.715 | AD22: 0.75509 | AE22: -0.61081 | AF22: -1.36590 | AG22: 1.36590 | AH22: 1.8657 | AJ22: -0.715 | AK22: 0.75509 | AL22: -0.59692 | AM22: -1.35201 | AN22: 1.35201 | AO22: 1.8279
A23: -0.7 | B23: 0.76484 | C23: 1.00000 | D23: 0.23516 | E23: 0.23516 | F23: 0.0553 | H23: -0.7 | I23: 0.76484 | J23: 0.84180 | K23: 0.07696 | L23: 0.07696 | M23: 0.0059 | O23: -0.7 | P23: 0.76484 | Q23: 0.65908 | R23: -0.10576 | S23: 0.10576 | T23: 0.0112 | V23: -0.7 | W23: 0.76484 | X23: 0.40296 | Y23: -0.36188 | Z23: 0.36188 | AA23: 0.1310 | AC23: -0.7 | AD23: 0.76484 | AE23: -0.59865 | AF23: -1.36349 | AG23: 1.36349 | AH23: 1.8591 | AJ23: -0.7 | AK23: 0.76484 | AL23: -0.58641 | AM23: -1.35125 | AN23: 1.35125 | AO23: 1.8259
A24: -0.685 | B24: 0.77442 | C24: 1.00000 | D24: 0.22558 | E24: 0.22558 | F24: 0.0509 | H24: -0.685 | I24: 0.77442 | J24: 0.84909 | K24: 0.07468 | L24: 0.07468 | M24: 0.0056 | O24: -0.685 | P24: 0.77442 | Q24: 0.67440 | R24: -0.10002 | S24: 0.10002 | T24: 0.0100 | V24: -0.685 | W24: 0.77442 | X24: 0.42964 | Y24: -0.34478 | Z24: 0.34478 | AA24: 0.1189 | AC24: -0.685 | AD24: 0.77442 | AE24: -0.58659 | AF24: -1.36101 | AG24: 1.36101 | AH24: 1.8523 | AJ24: -0.685 | AK24: 0.77442 | AL24: -0.57584 | AM24: -1.35026 | AN24: 1.35026 | AO24: 1.8232
A25: -0.67 | B25: 0.78382 | C25: 1.00000 | D25: 0.21618 | E25: 0.21618 | F25: 0.0467 | H25: -0.67 | I25: 0.78382 | J25: 0.85622 | K25: 0.07240 | L25: 0.07240 | M25: 0.0052 | O25: -0.67 | P25: 0.78382 | Q25: 0.68933 | R25: -0.09449 | S25: 0.09449 | T25: 0.0089 | V25: -0.67 | W25: 0.78382 | X25: 0.45557 | Y25: -0.32825 | Z25: 0.32825 | AA25: 0.1077 | AC25: -0.67 | AD25: 0.78382 | AE25: -0.57462 | AF25: -1.35844 | AG25: 1.35844 | AH25: 1.8454 | AJ25: -0.67 | AK25: 0.78382 | AL25: -0.56521 | AM25: -1.34903 | AN25: 1.34903 | AO25: 1.8199
A26: -0.655 | B26: 0.79305 | C26: 1.00000 | D26: 0.20695 | E26: 0.20695 | F26: 0.0428 | H26: -0.655 | I26: 0.79305 | J26: 0.86317 | K26: 0.07012 | L26: 0.07012 | M26: 0.0049 | O26: -0.655 | P26: 0.79305 | Q26: 0.70387 | R26: -0.08918 | S26: 0.08918 | T26: 0.0080 | V26: -0.655 | W26: 0.79305 | X26: 0.48077 | Y26: -0.31227 | Z26: 0.31227 | AA26: 0.0975 | AC26: -0.655 | AD26: 0.79305 | AE26: -0.56272 | AF26: -1.35577 | AG26: 1.35577 | AH26: 1.8381 | AJ26: -0.655 | AK26: 0.79305 | AL26: -0.55451 | AM26: -1.34756 | AN26: 1.34756 | AO26: 1.8159
A27: -0.64 | B27: 0.80210 | C27: 1.00000 | D27: 0.19790 | E27: 0.19790 | F27: 0.0392 | H27: -0.64 | I27: 0.80210 | J27: 0.86995 | K27: 0.06786 | L27: 0.06786 | M27: 0.0046 | O27: -0.64 | P27: 0.80210 | Q27: 0.71803 | R27: -0.08406 | S27: 0.08406 | T27: 0.0071 | V27: -0.64 | W27: 0.80210 | X27: 0.50526 | Y27: -0.29684 | Z27: 0.29684 | AA27: 0.0881 | AC27: -0.64 | AD27: 0.80210 | AE27: -0.55089 | AF27: -1.35299 | AG27: 1.35299 | AH27: 1.8306 | AJ27: -0.64 | AK27: 0.80210 | AL27: -0.54375 | AM27: -1.34584 | AN27: 1.34584 | AO27: 1.8113
A28: -0.625 | B28: 0.81096 | C28: 1.00000 | D28: 0.18904 | E28: 0.18904 | F28: 0.0357 | H28: -0.625 | I28: 0.81096 | J28: 0.87656 | K28: 0.06560 | L28: 0.06560 | M28: 0.0043 | O28: -0.625 | P28: 0.81096 | Q28: 0.73181 | R28: -0.07915 | S28: 0.07915 | T28: 0.0063 | V28: -0.625 | W28: 0.81096 | X28: 0.52903 | Y28: -0.28194 | Z28: 0.28194 | AA28: 0.0795 | AC28: -0.625 | AD28: 0.81096 | AE28: -0.53912 | AF28: -1.35008 | AG28: 1.35008 | AH28: 1.8227 | AJ28: -0.625 | AK28: 0.81096 | AL28: -0.53292 | AM28: -1.34388 | AN28: 1.34388 | AO28: 1.8060
A29: -0.61 | B29: 0.81965 | C29: 1.00000 | D29: 0.18035 | E29: 0.18035 | F29: 0.0325 | H29: -0.61 | I29: 0.81965 | J29: 0.88300 | K29: 0.06335 | L29: 0.06335 | M29: 0.0040 | O29: -0.61 | P29: 0.81965 | Q29: 0.74521 | R29: -0.07443 | S29: 0.07443 | T29: 0.0055 | V29: -0.61 | W29: 0.81965 | X29: 0.55209 | Y29: -0.26756 | Z29: 0.26756 | AA29: 0.0716 | AC29: -0.61 | AD29: 0.81965 | AE29: -0.52738 | AF29: -1.34703 | AG29: 1.34703 | AH29: 1.8145 | AJ29: -0.61 | AK29: 0.81965 | AL29: -0.52202 | AM29: -1.34167 | AN29: 1.34167 | AO29: 1.8001
A30: -0.595 | B30: 0.82815 | C30: 1.00000 | D30: 0.17185 | E30: 0.17185 | F30: 0.0295 | H30: -0.595 | I30: 0.82815 | J30: 0.88927 | K30: 0.06112 | L30: 0.06112 | M30: 0.0037 | O30: -0.595 | P30: 0.82815 | Q30: 0.75824 | R30: -0.06991 | S30: 0.06991 | T30: 0.0049 | V30: -0.595 | W30: 0.82815 | X30: 0.57446 | Y30: -0.25369 | Z30: 0.25369 | AA30: 0.0644 | AC30: -0.595 | AD30: 0.82815 | AE30: -0.51567 | AF30: -1.34382 | AG30: 1.34382 | AH30: 1.8058 | AJ30: -0.595 | AK30: 0.82815 | AL30: -0.51106 | AM30: -1.33920 | AN30: 1.33920 | AO30: 1.7935
A31: -0.58 | B31: 0.83646 | C31: 1.00000 | D31: 0.16354 | E31: 0.16354 | F31: 0.0267 | H31: -0.58 | I31: 0.83646 | J31: 0.89537 | K31: 0.05891 | L31: 0.05891 | M31: 0.0035 | O31: -0.58 | P31: 0.83646 | Q31: 0.77089 | R31: -0.06557 | S31: 0.06557 | T31: 0.0043 | V31: -0.58 | W31: 0.83646 | X31: 0.59614 | Y31: -0.24032 | Z31: 0.24032 | AA31: 0.0578 | AC31: -0.58 | AD31: 0.83646 | AE31: -0.50398 | AF31: -1.34044 | AG31: 1.34044 | AH31: 1.7968 | AJ31: -0.58 | AK31: 0.83646 | AL31: -0.50002 | AM31: -1.33648 | AN31: 1.33648 | AO31: 1.7862
A32: -0.565 | B32: 0.84459 | C32: 1.00000 | D32: 0.15541 | E32: 0.15541 | F32: 0.0242 | H32: -0.565 | I32: 0.84459 | J32: 0.90129 | K32: 0.05671 | L32: 0.05671 | M32: 0.0032 | O32: -0.565 | P32: 0.84459 | Q32: 0.78318 | R32: -0.06141 | S32: 0.06141 | T32: 0.0038 | V32: -0.565 | W32: 0.84459 | X32: 0.61714 | Y32: -0.22745 | Z32: 0.22745 | AA32: 0.0517 | AC32: -0.565 | AD32: 0.84459 | AE32: -0.49230 | AF32: -1.33689 | AG32: 1.33689 | AH32: 1.7873 | AJ32: -0.565 | AK32: 0.84459 | AL32: -0.48891 | AM32: -1.33350 | AN32: 1.33350 | AO32: 1.7782
A33: -0.55 | B33: 0.85252 | C33: 1.00000 | D33: 0.14748 | E33: 0.14748 | F33: 0.0217 | H33: -0.55 | I33: 0.85252 | J33: 0.90705 | K33: 0.05453 | L33: 0.05453 | M33: 0.0030 | O33: -0.55 | P33: 0.85252 | Q33: 0.79509 | R33: -0.05743 | S33: 0.05743 | T33: 0.0033 | V33: -0.55 | W33: 0.85252 | X33: 0.63747 | Y33: -0.21506 | Z33: 0.21506 | AA33: 0.0463 | AC33: -0.55 | AD33: 0.85252 | AE33: -0.48061 | AF33: -1.33314 | AG33: 1.33314 | AH33: 1.7773 | AJ33: -0.55 | AK33: 0.85252 | AL33: -0.47773 | AM33: -1.33026 | AN33: 1.33026 | AO33: 1.7696
A34: -0.535 | B34: 0.86027 | C34: 1.00000 | D34: 0.13973 | E34: 0.13973 | F34: 0.0195 | H34: -0.535 | I34: 0.86027 | J34: 0.91263 | K34: 0.05237 | L34: 0.05237 | M34: 0.0027 | O34: -0.535 | P34: 0.86027 | Q34: 0.80664 | R34: -0.05362 | S34: 0.05362 | T34: 0.0029 | V34: -0.535 | W34: 0.86027 | X34: 0.65713 | Y34: -0.20314 | Z34: 0.20314 | AA34: 0.0413 | AC34: -0.535 | AD34: 0.86027 | AE34: -0.46892 | AF34: -1.32918 | AG34: 1.32918 | AH34: 1.7667 | AJ34: -0.535 | AK34: 0.86027 | AL34: -0.46648 | AM34: -1.32675 | AN34: 1.32675 | AO34: 1.7603
A35: -0.52 | B35: 0.86782 | C35: 1.00000 | D35: 0.13218 | E35: 0.13218 | F35: 0.0175 | H35: -0.52 | I35: 0.86782 | J35: 0.91805 | K35: 0.05023 | L35: 0.05023 | M35: 0.0025 | O35: -0.52 | P35: 0.86782 | Q35: 0.81783 | R35: -0.04999 | S35: 0.04999 | T35: 0.0025 | V35: -0.52 | W35: 0.86782 | X35: 0.67614 | Y35: -0.19168 | Z35: 0.19168 | AA35: 0.0367 | AC35: -0.52 | AD35: 0.86782 | AE35: -0.45720 | AF35: -1.32502 | AG35: 1.32502 | AH35: 1.7557 | AJ35: -0.52 | AK35: 0.86782 | AL35: -0.45514 | AM35: -1.32296 | AN35: 1.32296 | AO35: 1.7502
A36: =A35+(b-a)/200 -> -0.505 | B36: 0.87517 | C36: 1.00000 | D36: 0.12483 | E36: 0.12483 | F36: 0.0156 | H36: -0.505 | I36: 0.87517 | J36: 0.92329 | K36: 0.04812 | L36: 0.04812 | M36: 0.0023 | O36: =O35+(bb-aa)/200 -> -0.505 | P36: 0.87517 | Q36: 0.82866 | R36: -0.04652 | S36: 0.04652 | T36: 0.0022 | V36: =V35+(bbb-aaa)/200 -> -0.505 | W36: 0.87517 | X36: 0.69449 | Y36: -0.18068 | Z36: 0.18068 | AA36: 0.0326 | AC36: =AC35+(bbbb-aaaa)/200 -> -0.505 | AD36: 0.87517 | AE36: -0.44545 | AF36: -1.32063 | AG36: 1.32063 | AH36: 1.7441 | AJ36: =AJ35+(bbbbb-aaaaa)/200 -> -0.505 | AK36: 0.87517 | AL36: -0.44373 | AM36: -1.31890 | AN36: 1.31890 | AO36: 1.7395
A37: -0.49 | B37: 0.88233 | C37: 1.00000 | D37: 0.11767 | E37: 0.11767 | F37: 0.0138 | H37: -0.49 | I37: 0.88233 | J37: 0.92836 | K37: 0.04603 | L37: 0.04603 | M37: 0.0021 | O37: -0.49 | P37: 0.88233 | Q37: 0.83913 | R37: -0.04321 | S37: 0.04321 | T37: 0.0019 | V37: -0.49 | W37: 0.88233 | X37: 0.71221 | Y37: -0.17012 | Z37: 0.17012 | AA37: 0.0289 | AC37: -0.49 | AD37: 0.88233 | AE37: -0.43367 | AF37: -1.31600 | AG37: 1.31600 | AH37: 1.7319 | AJ37: -0.49 | AK37: 0.88233 | AL37: -0.43223 | AM37: -1.31457 | AN37: 1.31457 | AO37: 1.7281
A38: -0.475 | B38: 0.88929 | C38: 1.00000 | D38: 0.11071 | E38: 0.11071 | F38: 0.0123 | H38: -0.475 | I38: 0.88929 | J38: 0.93326 | K38: 0.04397 | L38: 0.04397 | M38: 0.0019 | O38: -0.475 | P38: 0.88929 | Q38: 0.84924 | R38: -0.04005 | S38: 0.04005 | T38: 0.0016 | V38: -0.475 | W38: 0.88929 | X38: 0.72929 | Y38: -0.16000 | Z38: 0.16000 | AA38: 0.0256 | AC38: -0.475 | AD38: 0.88929 | AE38: -0.42185 | AF38: -1.31114 | AG38: 1.31114 | AH38: 1.7191 | AJ38: -0.475 | AK38: 0.88929 | AL38: -0.42065 | AM38: -1.30994 | AN38: 1.30994 | AO38: 1.7160
A39: -0.46 | B39: 0.89605 | C39: 1.00000 | D39: 0.10395 | E39: 0.10395 | F39: 0.0108 | H39: -0.46 | I39: 0.89605 | J39: 0.93799 | K39: 0.04194 | L39: 0.04194 | M39: 0.0018 | O39: -0.46 | P39: 0.89605 | Q39: 0.85900 | R39: -0.03705 | S39: 0.03705 | T39: 0.0014 | V39: -0.46 | W39: 0.89605 | X39: 0.74575 | Y39: -0.15031 | Z39: 0.15031 | AA39: 0.0226 | AC39: -0.46 | AD39: 0.89605 | AE39: -0.40997 | AF39: -1.30602 | AG39: 1.30602 | AH39: 1.7057 | AJ39: -0.46 | AK39: 0.89605 | AL39: -0.40898 | AM39: -1.30504 | AN39: 1.30504 | AO39: 1.7031
A40: -0.445 | B40: 0.90261 | C40: 1.00000 | D40: 0.09739 | E40: 0.09739 | F40: 0.0095 | H40: -0.445 | I40: 0.90261 | J40: 0.94255 | K40: 0.03994 | L40: 0.03994 | M40: 0.0016 | O40: -0.445 | P40: 0.90261 | Q40: 0.86841 | R40: -0.03420 | S40: 0.03420 | T40: 0.0012 | V40: -0.445 | W40: 0.90261 | X40: 0.76158 | Y40: -0.14103 | Z40: 0.14103 | AA40: 0.0199 | AC40: -0.445 | AD40: 0.90261 | AE40: -0.39803 | AF40: -1.30064 | AG40: 1.30064 | AH40: 1.6917 | AJ40: -0.445 | AK40: 0.90261 | AL40: -0.39722 | AM40: -1.29984 | AN40: 1.29984 | AO40: 1.6896
A41: -0.43 | B41: 0.90897 | C41: 1.00000 | D41: 0.09103 | E41: 0.09103 | F41: 0.0083 | H41: -0.43 | I41: 0.90897 | J41: 0.94694 | K41: 0.03797 | L41: 0.03797 | M41: 0.0014 | O41: -0.43 | P41: 0.90897 | Q41: 0.87747 | R41: -0.03149 | S41: 0.03149 | T41: 0.0010 | V41: -0.43 | W41: 0.90897 | X41: 0.77680 | Y41: -0.13216 | Z41: 0.13216 | AA41: 0.0175 | AC41: -0.43 | AD41: 0.90897 | AE41: -0.38603 | AF41: -1.29500 | AG41: 1.29500 | AH41: 1.6770 | AJ41: -0.43 | AK41: 0.90897 | AL41: -0.38537 | AM41: -1.29434 | AN41: 1.29434 | AO41: 1.6753
A42: -0.415 | B42: 0.91512 | C42: 1.00000 | D42: 0.08488 | E42: 0.08488 | F42: 0.0072 | H42: -0.415 | I42: 0.91512 | J42: 0.95115 | K42: 0.03604 | L42: 0.03604 | M42: 0.0013 | O42: -0.415 | P42: 0.91512 | Q42: 0.88619 | R42: -0.02893 | S42: 0.02893 | T42: 0.0008 | V42: -0.415 | W42: 0.91512 | X42: 0.79142 | Y42: -0.12370 | Z42: 0.12370 | AA42: 0.0153 | AC42: -0.415 | AD42: 0.91512 | AE42: -0.37396 | AF42: -1.28908 | AG42: 1.28908 | AH42: 1.6617 | AJ42: -0.415 | AK42: 0.91512 | AL42: -0.37343 | AM42: -1.28855 | AN42: 1.28855 | AO42: 1.6603
A43: -0.4 | B43: 0.92106 | C43: 1.00000 | D43: 0.07894 | E43: 0.07894 | F43: 0.0062 | H43: -0.4 | I43: 0.92106 | J43: 0.95520 | K43: 0.03414 | L43: 0.03414 | M43: 0.0012 | O43: -0.4 | P43: 0.92106 | Q43: 0.89456 | R43: -0.02650 | S43: 0.02650 | T43: 0.0007 | V43: -0.4 | W43: 0.92106 | X43: 0.80544 | Y43: -0.11562 | Z43: 0.11562 | AA43: 0.0134 | AC43: -0.4 | AD43: 0.92106 | AE43: -0.36181 | AF43: -1.28287 | AG43: 1.28287 | AH43: 1.6458 | AJ43: -0.4 | AK43: 0.92106 | AL43: -0.36139 | AM43: -1.28245 | AN43: 1.28245 | AO43: 1.6447
A44: -0.385 | B44: 0.92680 | C44: 1.00000 | D44: 0.07320 | E44: 0.07320 | F44: 0.0054 | H44: -0.385 | I44: 0.92680 | J44: 0.95907 | K44: 0.03228 | L44: 0.03228 | M44: 0.0010 | O44: -0.385 | P44: 0.92680 | Q44: 0.90259 | R44: -0.02421 | S44: 0.02421 | T44: 0.0006 | V44: -0.385 | W44: 0.92680 | X44: 0.81887 | Y44: -0.10793 | Z44: 0.10793 | AA44: 0.0116 | AC44: -0.385 | AD44: 0.92680 | AE44: -0.34959 | AF44: -1.27638 | AG44: 1.27638 | AH44: 1.6292 | AJ44: -0.385 | AK44: 0.92680 | AL44: -0.34925 | AM44: -1.27605 | AN44: 1.27605 | AO44: 1.6283
A45: -0.37 | B45: 0.93233 | C45: 1.00000 | D45: 0.06767 | E45: 0.06767 | F45: 0.0046 | H45: -0.37 | I45: 0.93233 | J45: 0.96278 | K45: 0.03045 | L45: 0.03045 | M45: 0.0009 | O45: -0.37 | P45: 0.93233 | Q45: 0.91029 | R45: -0.02204 | S45: 0.02204 | T45: 0.0005 | V45: -0.37 | W45: 0.93233 | X45: 0.83171 | Y45: -0.10062 | Z45: 0.10062 | AA45: 0.0101 | AC45: -0.37 | AD45: 0.93233 | AE45: -0.33727 | AF45: -1.26960 | AG45: 1.26960 | AH45: 1.6119 | AJ45: -0.37 | AK45: 0.93233 | AL45: -0.33701 | AM45: -1.26933 | AN45: 1.26933 | AO45: 1.6112
A46: -0.355 | B46: 0.93765 | C46: 1.00000 | D46: 0.06235 | E46: 0.06235 | F46: 0.0039 | H46: -0.355 | I46: 0.93765 | J46: 0.96631 | K46: 0.02866 | L46: 0.02866 | M46: 0.0008 | O46: -0.355 | P46: 0.93765 | Q46: 0.91764 | R46: -0.02000 | S46: 0.02000 | T46: 0.0004 | V46: -0.355 | W46: 0.93765 | X46: 0.84397 | Y46: -0.09367 | Z46: 0.09367 | AA46: 0.0088 | AC46: -0.355 | AD46: 0.93765 | AE46: -0.32487 | AF46: -1.26252 | AG46: 1.26252 | AH46: 1.5939 | AJ46: -0.355 | AK46: 0.93765 | AL46: -0.32466 | AM46: -1.26231 | AN46: 1.26231 | AO46: 1.5934
A47: -0.34 | B47: 0.94275 | C47: 1.00000 | D47: 0.05725 | E47: 0.05725 | F47: 0.0033 | H47: -0.34 | I47: 0.94275 | J47: 0.96967 | K47: 0.02692 | L47: 0.02692 | M47: 0.0007 | O47: -0.34 | P47: 0.94275 | Q47: 0.92467 | R47: -0.01809 | S47: 0.01809 | T47: 0.0003 | V47: -0.34 | W47: 0.94275 | X47: 0.85566 | Y47: -0.08709 | Z47: 0.08709 | AA47: 0.0076 | AC47: -0.34 | AD47: 0.94275 | AE47: -0.31237 | AF47: -1.25513 | AG47: 1.25513 | AH47: 1.5753 | AJ47: -0.34 | AK47: 0.94275 | AL47: -0.31221 | AM47: -1.25497 | AN47: 1.25497 | AO47: 1.5749
A48: -0.325 | B48: 0.94765 | C48: 1.00000 | D48: 0.05235 | E48: 0.05235 | F48: 0.0027 | H48: -0.325 | I48: 0.94765 | J48: 0.97286 | K48: 0.02521 | L48: 0.02521 | M48: 0.0006 | O48: -0.325 | P48: 0.94765 | Q48: 0.93136 | R48: -0.01629 | S48: 0.01629 | T48: 0.0003 | V48: -0.325 | W48: 0.94765 | X48: 0.86679 | Y48: -0.08086 | Z48: 0.08086 | AA48: 0.0065 | AC48: -0.325 | AD48: 0.94765 | AE48: -0.29978 | AF48: -1.24743 | AG48: 1.24743 | AH48: 1.5561 | AJ48: -0.325 | AK48: 0.94765 | AL48: -0.29965 | AM48: -1.24730 | AN48: 1.24730 | AO48: 1.5558
A49: -0.31 | B49: 0.95233 | C49: 1.00000 | D49: 0.04767 | E49: 0.04767 | F49: 0.0023 | H49: -0.31 | I49: 0.95233 | J49: 0.97588 | K49: 0.02355 | L49: 0.02355 | M49: 0.0006 | O49: -0.31 | P49: 0.95233 | Q49: 0.93773 | R49: -0.01460 | S49: 0.01460 | T49: 0.0002 | V49: -0.31 | W49: 0.95233 | X49: 0.87736 | Y49: -0.07498 | Z49: 0.07498 | AA49: 0.0056 | AC49: -0.31 | AD49: 0.95233 | AE49: -0.28708 | AF49: -1.23941 | AG49: 1.23941 | AH49: 1.5361 | AJ49: -0.31 | AK49: 0.95233 | AL49: -0.28699 | AM49: -1.23932 | AN49: 1.23932 | AO49: 1.5359
A50: -0.295 | B50: 0.95680 | C50: 1.00000 | D50: 0.04320 | E50: 0.04320 | F50: 0.0019 | H50: -0.295 | I50: 0.95680 | J50: 0.97873 | K50: 0.02193 | L50: 0.02193 | M50: 0.0005 | O50: -0.295 | P50: 0.95680 | Q50: 0.94377 | R50: -0.01303 | S50: 0.01303 | T50: 0.0002 | V50: -0.295 | W50: 0.95680 | X50: 0.88737 | Y50: -0.06943 | Z50: 0.06943 | AA50: 0.0048 | AC50: -0.295 | AD50: 0.95680 | AE50: -0.27428 | AF50: -1.23108 | AG50: 1.23108 | AH50: 1.5156 | AJ50: -0.295 | AK50: 0.95680 | AL50: -0.27421 | AM50: -1.23102 | AN50: 1.23102 | AO50: 1.5154
A51: -0.28 | B51: 0.96106 | C51: 1.00000 | D51: 0.03894 | E51: 0.03894 | F51: 0.0015 | H51: -0.28 | I51: 0.96106 | J51: 0.98141 | K51: 0.02035 | L51: 0.02035 | M51: 0.0004 | O51: -0.28 | P51: 0.96106 | Q51: 0.94949 | R51: -0.01157 | S51: 0.01157 | T51: 0.0001 | V51: -0.28 | W51: 0.96106 | X51: 0.89684 | Y51: -0.06422 | Z51: 0.06422 | AA51: 0.0041 | AC51: -0.28 | AD51: 0.96106 | AE51: -0.26138 | AF51: -1.22243 | AG51: 1.22243 | AH51: 1.4943 | AJ51: -0.28 | AK51: 0.96106 | AL51: -0.26133 | AM51: -1.22238 | AN51: 1.22238 | AO51: 1.4942
A52: -0.265 | B52: 0.96509 | C52: 1.00000 | D52: 0.03491 | E52: 0.03491 | F52: 0.0012 | H52: -0.265 | I52: 0.96509 | J52: 0.98391 | K52: 0.01882 | L52: 0.01882 | M52: 0.0004 | O52: -0.265 | P52: 0.96509 | Q52: 0.95488 | R52: -0.01021 | S52: 0.01021 | T52: 0.0001 | V52: -0.265 | W52: 0.96509 | X52: 0.90576 | Y52: -0.05933 | Z52: 0.05933 | AA52: 0.0035 | AC52: -0.265 | AD52: 0.96509 | AE52: -0.24836 | AF52: -1.21345 | AG52: 1.21345 | AH52: 1.4725 | AJ52: -0.265 | AK52: 0.96509 | AL52: -0.24833 | AM52: -1.21342 | AN52: 1.21342 | AO52: 1.4724
A53: -0.25 | B53: 0.96891 | C53: 1.00000 | D53: 0.03109 | E53: 0.03109 | F53: 0.0010 | H53: -0.25 | I53: 0.96891 | J53: 0.98625 | K53: 0.01734 | L53: 0.01734 | M53: 0.0003 | O53: -0.25 | P53: 0.96891 | Q53: 0.95996 | R53: -0.00895 | S53: 0.00895 | T53: 0.0001 | V53: -0.25 | W53: 0.96891 | X53: 0.91415 | Y53: -0.05476 | Z53: 0.05476 | AA53: 0.0030 | AC53: -0.25 | AD53: 0.96891 | AE53: -0.23524 | AF53: -1.20415 | AG53: 1.20415 | AH53: 1.4500 | AJ53: -0.25 | AK53: 0.96891 | AL53: -0.23521 | AM53: -1.20413 | AN53: 1.20413 | AO53: 1.4499
A54: -0.235 | B54: 0.97251 | C54: 1.00000 | D54: 0.02749 | E54: 0.02749 | F54: 0.0008 | H54: -0.235 | I54: 0.97251 | J54: 0.98841 | K54: 0.01590 | L54: 0.01590 | M54: 0.0003 | O54: -0.235 | P54: 0.97251 | Q54: 0.96472 | R54: -0.00779 | S54: 0.00779 | T54: 0.0001 | V54: -0.235 | W54: 0.97251 | X54: 0.92201 | Y54: -0.05050 | Z54: 0.05050 | AA54: 0.0026 | AC54: -0.235 | AD54: 0.97251 | AE54: -0.22200 | AF54: -1.19452 | AG54: 1.19452 | AH54: 1.4269 | AJ54: -0.235 | AK54: 0.97251 | AL54: -0.22199 | AM54: -1.19450 | AN54: 1.19450 | AO54: 1.4268
A55: -0.22 | B55: 0.97590 | C55: 1.00000 | D55: 0.02410 | E55: 0.02410 | F55: 0.0006 | H55: -0.22 | I55: 0.97590 | J55: 0.99041 | K55: 0.01451 | L55: 0.01451 | M55: 0.0002 | O55: -0.22 | P55: 0.97590 | Q55: 0.96917 | R55: -0.00673 | S55: 0.00673 | T55: 0.0000 | V55: -0.22 | W55: 0.97590 | X55: 0.92935 | Y55: -0.04655 | Z55: 0.04655 | AA55: 0.0022 | AC55: -0.22 | AD55: 0.97590 | AE55: -0.20865 | AF55: -1.18455 | AG55: 1.18455 | AH55: 1.4032 | AJ55: -0.22 | AK55: 0.97590 | AL55: -0.20864 | AM55: -1.18454 | AN55: 1.18454 | AO55: 1.4031
A56: -0.205 | B56: 0.97906 | C56: 1.00000 | D56: 0.02094 | E56: 0.02094 | F56: 0.0004 | H56: -0.205 | I56: 0.97906 | J56: 0.99223 | K56: 0.01317 | L56: 0.01317 | M56: 0.0002 | O56: -0.205 | P56: 0.97906 | Q56: 0.97331 | R56: -0.00575 | S56: 0.00575 | T56: 0.0000 | V56: -0.205 | W56: 0.97906 | X56: 0.93616 | Y56: -0.04290 | Z56: 0.04290 | AA56: 0.0018 | AC56: -0.205 | AD56: 0.97906 | AE56: -0.19519 | AF56: -1.17425 | AG56: 1.17425 | AH56: 1.3789 | AJ56: -0.205 | AK56: 0.97906 | AL56: -0.19518 | AM56: -1.17425 | AN56: 1.17425 | AO56: 1.3789
A57: -0.19 | B57: 0.98200 | C57: 1.00000 | D57: 0.01800 | E57: 0.01800 | F57: 0.0003 | H57: -0.19 | I57: 0.98200 | J57: 0.99388 | K57: 0.01188 | L57: 0.01188 | M57: 0.0001 | O57: -0.19 | P57: 0.98200 | Q57: 0.97714 | R57: -0.00487 | S57: 0.00487 | T57: 0.0000 | V57: -0.19 | W57: 0.98200 | X57: 0.94247 | Y57: -0.03954 | Z57: 0.03954 | AA57: 0.0016 | AC57: -0.19 | AD57: 0.98200 | AE57: -0.18162 | AF57: -1.16362 | AG57: 1.16362 | AH57: 1.3540 | AJ57: -0.19 | AK57: 0.98200 | AL57: -0.18161 | AM57: -1.16362 | AN57: 1.16362 | AO57: 1.3540
A58: -0.175 | B58: 0.98473 | C58: 1.00000 | D58: 0.01527 | E58: 0.01527 | F58: 0.0002 | H58: -0.175 | I58: 0.98473 | J58: 0.99536 | K58: 0.01064 | L58: 0.01064 | M58: 0.0001 | O58: -0.175 | P58: 0.98473 | Q58: 0.98066 | R58: -0.00406 | S58: 0.00406 | T58: 0.0000 | V58: -0.175 | W58: 0.98473 | X58: 0.94826 | Y58: -0.03647 | Z58: 0.03647 | AA58: 0.0013 | AC58: -0.175 | AD58: 0.98473 | AE58: -0.16793 | AF58: -1.15265 | AG58: 1.15265 | AH58: 1.3286 | AJ58: -0.175 | AK58: 0.98473 | AL58: -0.16792 | AM58: -1.15265 | AN58: 1.15265 | AO58: 1.3286
A59: -0.16 | B59: 0.98723 | C59: 1.00000 | D59: 0.01277 | E59: 0.01277 | F59: 0.0002 | H59: -0.16 | I59: 0.98723 | J59: 0.99667 | K59: 0.00944 | L59: 0.00944 | M59: 0.0001 | O59: -0.16 | P59: 0.98723 | Q59: 0.98388 | R59: -0.00335 | S59: 0.00335 | T59: 0.0000 | V59: -0.16 | W59: 0.98723 | X59: 0.95355 | Y59: -0.03367 | Z59: 0.03367 | AA59: 0.0011 | AC59: -0.16 | AD59: 0.98723 | AE59: -0.15412 | AF59: -1.14135 | AG59: 1.14135 | AH59: 1.3027 | AJ59: -0.16 | AK59: 0.98723 | AL59: -0.15412 | AM59: -1.14135 | AN59: 1.14135 | AO59: 1.3027
A60: -0.145 | B60: 0.98951 | C60: 1.00000 | D60: 0.01049 | E60: 0.01049 | F60: 0.0001 | H60: -0.145 | I60: 0.98951 | J60: 0.99781 | K60: 0.00830 | L60: 0.00830 | M60: 0.0001 | O60: -0.145 | P60: 0.98951 | Q60: 0.98680 | R60: -0.00270 | S60: 0.00270 | T60: 0.0000 | V60: -0.145 | W60: 0.98951 | X60: 0.95835 | Y60: -0.03116 | Z60: 0.03116 | AA60: 0.0010 | AC60: -0.145 | AD60: 0.98951 | AE60: -0.14020 | AF60: -1.12971 | AG60: 1.12971 | AH60: 1.2762 | AJ60: -0.145 | AK60: 0.98951 | AL60: -0.14020 | AM60: -1.12971 | AN60: 1.12971 | AO60: 1.2762
A61: -0.13 | B61: 0.99156 | C61: 1.00000 | D61: 0.00844 | E61: 0.00844 | F61: 0.0001 | H61: -0.13 | I61: 0.99156 | J61: 0.99878 | K61: 0.00722 | L61: 0.00722 | M61: 0.0001 | O61: -0.13 | P61: 0.99156 | Q61: 0.98942 | R61: -0.00214 | S61: 0.00214 | T61: 0.0000 | V61: -0.13 | W61: 0.99156 | X61: 0.96265 | Y61: -0.02891 | Z61: 0.02891 | AA61: 0.0008 | AC61: -0.13 | AD61: 0.99156 | AE61: -0.12617 | AF61: -1.11773 | AG61: 1.11773 | AH61: 1.2493 | AJ61: -0.13 | AK61: 0.99156 | AL61: -0.12617 | AM61: -1.11773 | AN61: 1.11773 | AO61: 1.2493
A62: -0.115 | B62: 0.99339 | C62: 1.00000 | D62: 0.00661 | E62: 0.00661 | F62: 0.0000 | H62: -0.115 | I62: 0.99339 | J62: 0.99957 | K62: 0.00618 | L62: 0.00618 | M62: 0.0000 | O62: -0.115 | P62: 0.99339 | Q62: 0.99175 | R62: -0.00165 | S62: 0.00165 | T62: 0.0000 | V62: -0.115 | W62: 0.99339 | X62: 0.96647 | Y62: -0.02693 | Z62: 0.02693 | AA62: 0.0007 | AC62: -0.115 | AD62: 0.99339 | AE62: -0.11202 | AF62: -1.10542 | AG62: 1.10542 | AH62: 1.2219 | AJ62: -0.115 | AK62: 0.99339 | AL62: -0.11202 | AM62: -1.10542 | AN62: 1.10542 | AO62: 1.2219
A63: -0.1 | B63: 0.99500 | C63: 1.00000 | D63: 0.00500 | E63: 0.00500 | F63: 0.0000 | H63: -0.1 | I63: 0.99500 | J63: 1.00020 | K63: 0.00520 | L63: 0.00520 | M63: 0.0000 | O63: -0.1 | P63: 0.99500 | Q63: 0.99378 | R63: -0.00123 | S63: 0.00123 | T63: 0.0000 | V63: -0.1 | W63: 0.99500 | X63: 0.96980 | Y63: -0.02521 | Z63: 0.02521 | AA63: 0.0006 | AC63: -0.1 | AD63: 0.99500 | AE63: -0.09777 | AF63: -1.09277 | AG63: 1.09277 | AH63: 1.1941 | AJ63: -0.1 | AK63: 0.99500 | AL63: -0.09777 | AM63: -1.09277 | AN63: 1.09277 | AO63: 1.1941
A64: -0.085 | B64: 0.99639 | C64: 1.00000 | D64: 0.00361 | E64: 0.00361 | F64: 0.0000 | H64: -0.085 | I64: 0.99639 | J64: 1.00065 | K64: 0.00426 | L64: 0.00426 | M64: 0.0000 | O64: -0.085 | P64: 0.99639 | Q64: 0.99552 | R64: -0.00087 | S64: 0.00087 | T64: 0.0000 | V64: -0.085 | W64: 0.99639 | X64: 0.97265 | Y64: -0.02374 | Z64: 0.02374 | AA64: 0.0006 | AC64: -0.085 | AD64: 0.99639 | AE64: -0.08340 | AF64: -1.07979 | AG64: 1.07979 | AH64: 1.1659 | AJ64: -0.085 | AK64: 0.99639 | AL64: -0.08340 | AM64: -1.07979 | AN64: 1.07979 | AO64: 1.1659
A65: -0.07 | B65: 0.99755 | C65: 1.00000 | D65: 0.00245 | E65: 0.00245 | F65: 0.0000 | H65: -0.07 | I65: 0.99755 | J65: 1.00094 | K65: 0.00339 | L65: 0.00339 | M65: 0.0000 | O65: -0.07 | P65: 0.99755 | Q65: 0.99697 | R65: -0.00058 | S65: 0.00058 | T65: 0.0000 | V65: -0.07 | W65: 0.99755 | X65: 0.97503 | Y65: -0.02252 | Z65: 0.02252 | AA65: 0.0005 | AC65: -0.07 | AD65: 0.99755 | AE65: -0.06892 | AF65: -1.06647 | AG65: 1.06647 | AH65: 1.1374 | AJ65: -0.07 | AK65: 0.99755 | AL65: -0.06892 | AM65: -1.06647 | AN65: 1.06647 | AO65: 1.1374
A66: -0.055 | B66: 0.99849 | C66: 1.00000 | D66: 0.00151 | E66: 0.00151 | F66: 0.0000 | H66: -0.055 | I66: 0.99849 | J66: 1.00105 | K66: 0.00256 | L66: 0.00256 | M66: 0.0000 | O66: -0.055 | P66: 0.99849 | Q66: 0.99813 | R66: -0.00035 | S66: 0.00035 | T66: 0.0000 | V66: -0.055 | W66: 0.99849 | X66: 0.97694 | Y66: -0.02155 | Z66: 0.02155 | AA66: 0.0005 | AC66: -0.055 | AD66: 0.99849 | AE66: -0.05434 | AF66: -1.05283 | AG66: 1.05283 | AH66: 1.1084 | AJ66: -0.055 | AK66: 0.99849 | AL66: -0.05434 | AM66: -1.05283 | AN66: 1.05283 | AO66: 1.1084
A67: -0.04 | B67: 0.99920 | C67: =aa00+bb00*A67 -> 1.00000 | D67: 0.00080 | E67: 0.00080 | F67: 0.0000 | H67: -0.04 | I67: 0.99920 | J67: =a0+b0*A67+c0*A67^2 -> 1.00099 | K67: 0.00179 | L67: 0.00179 | M67: 0.0000 | O67: -0.04 | P67: 0.99920 | Q67: =a00+b00*O67+c00*O67^2+d00*A67^3 -> 0.99902 | R67: -0.00018 | S67: 0.00018 | T67: 0.0000 | V67: -0.04 | W67: 0.99920 | X67: =a000+b000*V67+c000*V67^2+d000*O67^3+e000*O67^4 -> 0.97839 | Y67: -0.02081 | Z67: 0.02081 | AA67: 0.0004 | AC67: -0.04 | AD67: 0.99920 | AE67: =a0000+b0000*AC67+c0000*AC67^2+d0000*AC67^3+e0000*AC67^4+f0000*AC67^5 -> -0.03965 | AF67: -1.03885 | AG67: 1.03885 | AH67: 1.0792 | AJ67: -0.04 | AK67: 0.99920 | AL67: =a0000+b0000*AJ67+c0000*AJ67^2+d0000*AJ67^3+e0000*AJ67^4+f0000*AJ67^5+g00000*AJ67^6 -> -0.03965 | AM67: -1.03885 | AN67: 1.03885 | AO67: 1.0792
A68: =A67+(b-a)/200 -> -0.025 | B68: =COS(A68) -> 0.99969 | C68: 1.00000 | D68: =C68-B68 -> 0.00031 | E68: =ABS(D68) -> 0.00031 | F68: =D68^2 -> 0.0000 | H68: =H67+(b-a)/200 -> -0.025 | I68: =COS(H68) -> 0.99969 | J68: 1.00076 | K68: =J68-I68 -> 0.00107 | L68: =ABS(K68) -> 0.00107 | M68: =K68^2 -> 0.0000 | O68: =O67+(bb-aa)/200 -> -0.025 | P68: =COS(O68) -> 0.99969 | Q68: 0.99962 | R68: =Q68-P68 -> -0.00007 | S68: =ABS(R68) -> 0.00007 | T68: =R68^2 -> 0.0000 | V68: =V67+(bbb-aaa)/200 -> -0.025 | W68: =COS(V68) -> 0.99969 | X68: 0.97937 | Y68: =X68-W68 -> -0.02032 | Z68: =ABS(Y68) -> 0.02032 | AA68: =Y68^2 -> 0.0004 | AC68: =AC67+(bbbb-aaaa)/200 -> -0.025 | AD68: =COS(AC68) -> 0.99969 | AE68: -0.02487 | AF68: =AE68-AD68 -> -1.02455 | AG68: =ABS(AF68) -> 1.02455 | AH68: =AF68^2 -> 1.0497 | AJ68: =AJ67+(bbbbb-aaaaa)/200 -> -0.025 | AK68: =COS(AJ68) -> 0.99969 | AL68: -0.02487 | AM68: =AL68-AK68 -> -1.02455 | AN68: =ABS(AM68) -> 1.02455 | AO68: =AM68^2 -> 1.0497
A69: -0.01 | B69: 0.99995 | C69: 1.00000 | D69: 0.00005 | E69: 0.00005 | F69: 0.0000 | H69: -0.01 | I69: 0.99995 | J69: 1.00036 | K69: 0.00041 | L69: 0.00041 | M69: 0.0000 | O69: -0.01 | P69: 0.99995 | Q69: 0.99994 | R69: -0.00001 | S69: 0.00001 | T69: 0.0000 | V69: -0.01 | W69: 0.99995 | X69: 0.97990 | Y69: -0.02005 | Z69: 0.02005 | AA69: 0.0004 | AC69: -0.01 | AD69: 0.99995 | AE69: -0.00998 | AF69: -1.00993 | AG69: 1.00993 | AH69: 1.0200 | AJ69: -0.01 | AK69: 0.99995 | AL69: -0.00998 | AM69: -1.00993 | AN69: 1.00993 | AO69: 1.0200
A70: 0.005 | B70: 0.99999 | C70: 1.00000 | D70: 0.00001 | E70: 0.00001 | F70: 0.0000 | H70: 0.005 | I70: 0.99999 | J70: 0.99979 | K70: -0.00020 | L70: 0.00020 | M70: 0.0000 | O70: 0.005 | P70: 0.99999 | Q70: 0.99998 | R70: -0.00000 | S70: 0.00000 | T70: 0.0000 | V70: 0.005 | W70: 0.99999 | X70: 0.97998 | Y70: -0.02001 | Z70: 0.02001 | AA70: 0.0004 | AC70: 0.005 | AD70: 0.99999 | AE70: 0.00501 | AF70: -0.99498 | AG70: 0.99498 | AH70: 0.9900 | AJ70: 0.005 | AK70: 0.99999 | AL70: 0.00501 | AM70: -0.99498 | AN70: 0.99498 | AO70: 0.9900
A71: 0.02 | B71: 0.99980 | C71: 1.00000 | D71: 0.00020 | E71: 0.00020 | F71: 0.0000 | H71: 0.02 | I71: 0.99980 | J71: 0.99905 | K71: -0.00075 | L71: 0.00075 | M71: 0.0000 | O71: 0.02 | P71: 0.99980 | Q71: 0.99976 | R71: -0.00004 | S71: 0.00004 | T71: 0.0000 | V71: 0.02 | W71: 0.99980 | X71: 0.97960 | Y71: -0.02020 | Z71: 0.02020 | AA71: 0.0004 | AC71: 0.02 | AD71: 0.99980 | AE71: 0.02008 | AF71: -0.97972 | AG71: 0.97972 | AH71: 0.9598 | AJ71: 0.02 | AK71: 0.99980 | AL71: 0.02008 | AM71: -0.97972 | AN71: 0.97972 | AO71: 0.9598
A72: 0.035 | B72: 0.99939 | C72: 1.00000 | D72: 0.00061 | E72: 0.00061 | F72: 0.0000 | H72: 0.035 | I72: 0.99939 | J72: 0.99813 | K72: -0.00125 | L72: 0.00125 | M72: 0.0000 | O72: 0.035 | P72: 0.99939 | Q72: 0.99926 | R72: -0.00013 | S72: 0.00013 | T72: 0.0000 | V72: 0.035 | W72: 0.99939 | X72: 0.97878 | Y72: -0.02060 | Z72: 0.02060 | AA72: 0.0004 | AC72: 0.035 | AD72: 0.99939 | AE72: 0.03525 | AF72: -0.96414 | AG72: 0.96414 | AH72: 0.9296 | AJ72: 0.035 | AK72: 0.99939 | AL72: 0.03525 | AM72: -0.96414 | AN72: 0.96414 | AO72: 0.9296
A73: 0.05 | B73: 0.99875 | C73: 1.00000 | D73: 0.00125 | E73: 0.00125 | F73: 0.0000 | H73: 0.05 | I73: 0.99875 | J73: 0.99705 | K73: -0.00170 | L73: 0.00170 | M73: 0.0000 | O73: 0.05 | P73: 0.99875 | Q73: 0.99849 | R73: -0.00026 | S73: 0.00026 | T73: 0.0000 | V73: 0.05 | W73: 0.99875 | X73: 0.97752 | Y73: -0.02123 | Z73: 0.02123 | AA73: 0.0005 | AC73: 0.05 | AD73: 0.99875 | AE73: 0.05050 | AF73: -0.94825 | AG73: 0.94825 | AH73: 0.8992 | AJ73: 0.05 | AK73: 0.99875 | AL73: 0.05050 | AM73: -0.94825 | AN73: 0.94825 | AO73: 0.8992
A74: 0.065 | B74: 0.99789 | C74: 1.00000 | D74: 0.00211 | E74: 0.00211 | F74: 0.0000 | H74: 0.065 | I74: 0.99789 | J74: 0.99579 | K74: -0.00209 | L74: 0.00209 | M74: 0.0000 | O74: 0.065 | P74: 0.99789 | Q74: 0.99746 | R74: -0.00043 | S74: 0.00043 | T74: 0.0000 | V74: 0.065 | W74: 0.99789 | X74: 0.97583 | Y74: -0.02206 | Z74: 0.02206 | AA74: 0.0005 | AC74: 0.065 | AD74: 0.99789 | AE74: 0.06584 | AF74: -0.93205 | AG74: 0.93205 | AH74: 0.8687 | AJ74: 0.065 | AK74: 0.99789 | AL74: 0.06584 | AM74: -0.93205 | AN74: 0.93205 | AO74: 0.8687
A75: 0.08 | B75: 0.99680 | C75: 1.00000 | D75: 0.00320 | E75: 0.00320 | F75: 0.0000 | H75: 0.08 | I75: 0.99680 | J75: 0.99437 | K75: -0.00243 | L75: 0.00243 | M75: 0.0000 | O75: 0.08 | P75: 0.99680 | Q75: 0.99616 | R75: -0.00064 | S75: 0.00064 | T75: 0.0000 | V75: 0.08 | W75: 0.99680 | X75: 0.97369 | Y75: -0.02311 | Z75: 0.02311 | AA75: 0.0005 | AC75: 0.08 | AD75: 0.99680 | AE75: 0.08126 | AF75: -0.91554 | AG75: 0.91554 | AH75: 0.8382 | AJ75: 0.08 | AK75: 0.99680 | AL75: 0.08126 | AM75: -0.91554 | AN75: 0.91554 | AO75: 0.8382
A76: 0.095 | B76: 0.99549 | C76: 1.00000 | D76: 0.00451 | E76: 0.00451 | F76: 0.0000 | H76: 0.095 | I76: 0.99549 | J76: 0.99277 | K76: -0.00272 | L76: 0.00272 | M76: 0.0000 | O76: 0.095 | P76: 0.99549 | Q76: 0.99460 | R76: -0.00089 | S76: 0.00089 | T76: 0.0000 | V76: 0.095 | W76: 0.99549 | X76: 0.97113 | Y76: -0.02436 | Z76: 0.02436 | AA76: 0.0006 | AC76: 0.095 | AD76: 0.99549 | AE76: 0.09675 | AF76: -0.89874 | AG76: 0.89874 | AH76: 0.8077 | AJ76: 0.095 | AK76: 0.99549 | AL76: 0.09675 | AM76: -0.89874 | AN76: 0.89874 | AO76: 0.8077
A77: 0.11 | B77: 0.99396 | C77: 1.00000 | D77: 0.00604 | E77: 0.00604 | F77: 0.0000 | H77: 0.11 | I77: 0.99396 | J77: 0.99100 | K77: -0.00295 | L77: 0.00295 | M77: 0.0000 | O77: 0.11 | P77: 0.99396 | Q77: 0.99278 | R77: -0.00117 | S77: 0.00117 | T77: 0.0000 | V77: 0.11 | W77: 0.99396 | X77: 0.96814 | Y77: -0.02581 | Z77: 0.02581 | AA77: 0.0007 | AC77: 0.11 | AD77: 0.99396 | AE77: 0.11231 | AF77: -0.88164 | AG77: 0.88164 | AH77: 0.7773 | AJ77: 0.11 | AK77: 0.99396 | AL77: 0.11231 | AM77: -0.88164 | AN77: 0.88164 | AO77: 0.7773
A78: 0.125 | B78: 0.99220 | C78: 1.00000 | D78: 0.00780 | E78: 0.00780 | F78: 0.0001 | H78: 0.125 | I78: 0.99220 | J78: 0.98906 | K78: -0.00314 | L78: 0.00314 | M78: 0.0000 | O78: 0.125 | P78: 0.99220 | Q78: 0.99071 | R78: -0.00149 | S78: 0.00149 | T78: 0.0000 | V78: 0.125 | W78: 0.99220 | X78: 0.96473 | Y78: -0.02747 | Z78: 0.02747 | AA78: 0.0008 | AC78: 0.125 | AD78: 0.99220 | AE78: 0.12794 | AF78: -0.86425 | AG78: 0.86425 | AH78: 0.7469 | AJ78: 0.125 | AK78: 0.99220 | AL78: 0.12794 | AM78: -0.86425 | AN78: 0.86425 | AO78: 0.7469
A79: 0.14 | B79: 0.99022 | C79: 1.00000 | D79: 0.00978 | E79: 0.00978 | F79: 0.0001 | H79: 0.14 | I79: 0.99022 | J79: 0.98695 | K79: -0.00326 | L79: 0.00326 | M79: 0.0000 | O79: 0.14 | P79: 0.99022 | Q79: 0.98838 | R79: -0.00184 | S79: 0.00184 | T79: 0.0000 | V79: 0.14 | W79: 0.99022 | X79: 0.96089 | Y79: -0.02932 | Z79: 0.02932 | AA79: 0.0009 | AC79: 0.14 | AD79: 0.99022 | AE79: 0.14364 | AF79: -0.84658 | AG79: 0.84658 | AH79: 0.7167 | AJ79: 0.14 | AK79: 0.99022 | AL79: 0.14364 | AM79: -0.84658 | AN79: 0.84658 | AO79: 0.7167
A80: 0.155 | B80: 0.98801 | C80: 1.00000 | D80: 0.01199 | E80: 0.01199 | F80: 0.0001 | H80: 0.155 | I80: 0.98801 | J80: 0.98467 | K80: -0.00334 | L80: 0.00334 | M80: 0.0000 | O80: 0.155 | P80: 0.98801 | Q80: 0.98580 | R80: -0.00221 | S80: 0.00221 | T80: 0.0000 | V80: 0.155 | W80: 0.98801 | X80: 0.95664 | Y80: -0.03137 | Z80: 0.03137 | AA80: 0.0010 | AC80: 0.155 | AD80: 0.98801 | AE80: 0.15938 | AF80: -0.82863 | AG80: 0.82863 | AH80: 0.6866 | AJ80: 0.155 | AK80: 0.98801 | AL80: 0.15939 | AM80: -0.82863 | AN80: 0.82863 | AO80: 0.6866
A81: 0.17 | B81: 0.98558 | C81: 1.00000 | D81: 0.01442 | E81: 0.01442 | F81: 0.0002 | H81: 0.17 | I81: 0.98558 | J81: 0.98222 | K81: -0.00337 | L81: 0.00337 | M81: 0.0000 | O81: 0.17 | P81: 0.98558 | Q81: 0.98297 | R81: -0.00261 | S81: 0.00261 | T81: 0.0000 | V81: 0.17 | W81: 0.98558 | X81: 0.95197 | Y81: -0.03361 | Z81: 0.03361 | AA81: 0.0011 | AC81: 0.17 | AD81: 0.98558 | AE81: 0.17519 | AF81: -0.81040 | AG81: 0.81040 | AH81: 0.6567 | AJ81: 0.17 | AK81: 0.98558 | AL81: 0.17519 | AM81: -0.81040 | AN81: 0.81040 | AO81: 0.6567
A82: 0.185 | B82: 0.98294 | C82: 1.00000 | D82: 0.01706 | E82: 0.01706 | F82: 0.0003 | H82: 0.185 | I82: 0.98294 | J82: 0.97959 | K82: -0.00334 | L82: 0.00334 | M82: 0.0000 | O82: 0.185 | P82: 0.98294 | Q82: 0.97990 | R82: -0.00304 | S82: 0.00304 | T82: 0.0000 | V82: 0.185 | W82: 0.98294 | X82: 0.94689 | Y82: -0.03604 | Z82: 0.03604 | AA82: 0.0013 | AC82: 0.185 | AD82: 0.98294 | AE82: 0.19104 | AF82: -0.79190 | AG82: 0.79190 | AH82: 0.6271 | AJ82: 0.185 | AK82: 0.98294 | AL82: 0.19104 | AM82: -0.79190 | AN82: 0.79190 | AO82: 0.6271
A83: 0.2 | B83: 0.98007 | C83: 1.00000 | D83: 0.01993 | E83: 0.01993 | F83: 0.0004 | H83: 0.2 | I83: 0.98007 | J83: 0.97680 | K83: -0.00327 | L83: 0.00327 | M83: 0.0000 | O83: 0.2 | P83: 0.98007 | Q83: 0.97658 | R83: -0.00349 | S83: 0.00349 | T83: 0.0000 | V83: 0.2 | W83: 0.98007 | X83: 0.94140 | Y83: -0.03867 | Z83: 0.03867 | AA83: 0.0015 | AC83: 0.2 | AD83: 0.98007 | AE83: 0.20693 | AF83: -0.77314 | AG83: 0.77314 | AH83: 0.5977 | AJ83: 0.2 | AK83: 0.98007 | AL83: 0.20693 | AM83: -0.77313 | AN83: 0.77313 | AO83: 0.5977
A84: 0.215 | B84: 0.97698 | C84: 1.00000 | D84: 0.02302 | E84: 0.02302 | F84: 0.0005 | H84: 0.215 | I84: 0.97698 | J84: 0.97383 | K84: -0.00314 | L84: 0.00314 | M84: 0.0000 | O84: 0.215 | P84: 0.97698 | Q84: 0.97302 | R84: -0.00396 | S84: 0.00396 | T84: 0.0000 | V84: 0.215 | W84: 0.97698 | X84: 0.93550 | Y84: -0.04148 | Z84: 0.04148 | AA84: 0.0017 | AC84: 0.215 | AD84: 0.97698 | AE84: 0.22286 | AF84: -0.75412 | AG84: 0.75412 | AH84: 0.5687 | AJ84: 0.215 | AK84: 0.97698 | AL84: 0.22287 | AM84: -0.75411 | AN84: 0.75411 | AO84: 0.5687
A85: 0.23 | B85: 0.97367 | C85: 1.00000 | D85: 0.02633 | E85: 0.02633 | F85: 0.0007 | H85: 0.23 | I85: 0.97367 | J85: 0.97070 | K85: -0.00297 | L85: 0.00297 | M85: 0.0000 | O85: 0.23 | P85: 0.97367 | Q85: 0.96922 | R85: -0.00444 | S85: 0.00444 | T85: 0.0000 | V85: 0.23 | W85: 0.97367 | X85: 0.92920 | Y85: -0.04447 | Z85: 0.04447 | AA85: 0.0020 | AC85: 0.23 | AD85: 0.97367 | AE85: 0.23882 | AF85: -0.73485 | AG85: 0.73485 | AH85: 0.5400 | AJ85: 0.23 | AK85: 0.97367 | AL85: 0.23883 | AM85: -0.73483 | AN85: 0.73483 | AO85: 0.5400
A86: 0.245 | B86: 0.97014 | C86: 1.00000 | D86: 0.02986 | E86: 0.02986 | F86: 0.0009 | H86: 0.245 | I86: 0.97014 | J86: 0.96739 | K86: -0.00275 | L86: 0.00275 | M86: 0.0000 | O86: 0.245 | P86: 0.97014 | Q86: 0.96519 | R86: -0.00495 | S86: 0.00495 | T86: 0.0000 | V86: 0.245 | W86: 0.97014 | X86: 0.92249 | Y86: -0.04765 | Z86: 0.04765 | AA86: 0.0023 | AC86: 0.245 | AD86: 0.97014 | AE86: 0.25481 | AF86: -0.71533 | AG86: 0.71533 | AH86: 0.5117 | AJ86: 0.245 | AK86: 0.97014 | AL86: 0.25483 | AM86: -0.71531 | AN86: 0.71531 | AO86: 0.5117
A87: 0.26 | B87: 0.96639 | C87: 1.00000 | D87: 0.03361 | E87: 0.03361 | F87: 0.0011 | H87: 0.26 | I87: 0.96639 | J87: 0.96391 | K87: -0.00248 | L87: 0.00248 | M87: 0.0000 | O87: 0.26 | P87: 0.96639 | Q87: 0.96092 | R87: -0.00547 | S87: 0.00547 | T87: 0.0000 | V87: 0.26 | W87: 0.96639 | X87: 0.91538 | Y87: -0.05101 | Z87: 0.05101 | AA87: 0.0026 | AC87: 0.26 | AD87: 0.96639 | AE87: 0.27082 | AF87: -0.69557 | AG87: 0.69557 | AH87: 0.4838 | AJ87: 0.26 | AK87: 0.96639 | AL87: 0.27085 | AM87: -0.69554 | AN87: 0.69554 | AO87: 0.4838
A88: 0.275 | B88: 0.96243 | C88: 1.00000 | D88: 0.03757 | E88: 0.03757 | F88: 0.0014 | H88: 0.275 | I88: 0.96243 | J88: 0.96026 | K88: -0.00216 | L88: 0.00216 | M88: 0.0000 | O88: 0.275 | P88: 0.96243 | Q88: 0.95642 | R88: -0.00601 | S88: 0.00601 | T88: 0.0000 | V88: 0.275 | W88: 0.96243 | X88: 0.90788 | Y88: -0.05455 | Z88: 0.05455 | AA88: 0.0030 | AC88: 0.275 | AD88: 0.96243 | AE88: 0.28684 | AF88: -0.67559 | AG88: 0.67559 | AH88: 0.4564 | AJ88: 0.275 | AK88: 0.96243 | AL88: 0.28688 | AM88: -0.67554 | AN88: 0.67554 | AO88: 0.4564
A89: 0.29 | B89: 0.95824 | C89: 1.00000 | D89: 0.04176 | E89: 0.04176 | F89: 0.0017 | H89: 0.29 | I89: 0.95824 | J89: 0.95644 | K89: -0.00180 | L89: 0.00180 | M89: 0.0000 | O89: 0.29 | P89: 0.95824 | Q89: 0.95169 | R89: -0.00656 | S89: 0.00656 | T89: 0.0000 | V89: 0.29 | W89: 0.95824 | X89: 0.89998 | Y89: -0.05827 | Z89: 0.05827 | AA89: 0.0034 | AC89: 0.29 | AD89: 0.95824 | AE89: 0.30287 | AF89: -0.65537 | AG89: 0.65537 | AH89: 0.4295 | AJ89: 0.29 | AK89: 0.95824 | AL89: 0.30294 | AM89: -0.65531 | AN89: 0.65531 | AO89: 0.4294
A90: 0.305 | B90: 0.95385 | C90: 1.00000 | D90: 0.04615 | E90: 0.04615 | F90: 0.0021 | H90: 0.305 | I90: 0.95385 | J90: 0.95245 | K90: -0.00140 | L90: 0.00140 | M90: 0.0000 | O90: 0.305 | P90: 0.95385 | Q90: 0.94673 | R90: -0.00712 | S90: 0.00712 | T90: 0.0001 | V90: 0.305 | W90: 0.95385 | X90: 0.89168 | Y90: -0.06217 | Z90: 0.06217 | AA90: 0.0039 | AC90: 0.305 | AD90: 0.95385 | AE90: 0.31891 | AF90: -0.63494 | AG90: 0.63494 | AH90: 0.4031 | AJ90: 0.305 | AK90: 0.95385 | AL90: 0.31899 | AM90: -0.63485 | AN90: 0.63485 | AO90: 0.4030
A91: 0.32 | B91: 0.94924 | C91: 1.00000 | D91: 0.05076 | E91: 0.05076 | F91: 0.0026 | H91: 0.32 | I91: 0.94924 | J91: 0.94829 | K91: -0.00095 | L91: 0.00095 | M91: 0.0000 | O91: 0.32 | P91: 0.94924 | Q91: 0.94155 | R91: -0.00769 | S91: 0.00769 | T91: 0.0001 | V91: 0.32 | W91: 0.94924 | X91: 0.88299 | Y91: -0.06625 | Z91: 0.06625 | AA91: 0.0044 | AC91: 0.32 | AD91: 0.94924 | AE91: 0.33495 | AF91: -0.61429 | AG91: 0.61429 | AH91: 0.3774 | AJ91: 0.32 | AK91: 0.94924 | AL91: 0.33506 | AM91: -0.61418 | AN91: 0.61418 | AO91: 0.3772
A92: 0.335 | B92: 0.94441 | C92: 1.00000 | D92: 0.05559 | E92: 0.05559 | F92: 0.0031 | H92: 0.335 | I92: 0.94441 | J92: 0.94395 | K92: -0.00046 | L92: 0.00046 | M92: 0.0000 | O92: 0.335 | P92: 0.94441 | Q92: 0.93615 | R92: -0.00826 | S92: 0.00826 | T92: 0.0001 | V92: 0.335 | W92: 0.94441 | X92: 0.87391 | Y92: -0.07050 | Z92: 0.07050 | AA92: 0.0050 | AC92: 0.335 | AD92: 0.94441 | AE92: 0.35097 | AF92: -0.59344 | AG92: 0.59344 | AH92: 0.3522 | AJ92: 0.335 | AK92: 0.94441 | AL92: 0.35112 | AM92: -0.59329 | AN92: 0.59329 | AO92: 0.3520
A93: 0.35 | B93: 0.93937 | C93: 1.00000 | D93: 0.06063 | E93: 0.06063 | F93: 0.0037 | H93: 0.35 | I93: 0.93937 | J93: 0.93945 | K93: 0.00008 | L93: 0.00008 | M93: 0.0000 | O93: 0.35 | P93: 0.93937 | Q93: 0.93053 | R93: -0.00885 | S93: 0.00885 | T93: 0.0001 | V93: 0.35 | W93: 0.93937 | X93: 0.86444 | Y93: -0.07493 | Z93: 0.07493 | AA93: 0.0056 | AC93: 0.35 | AD93: 0.93937 | AE93: 0.36699 | AF93: -0.57239 | AG93: 0.57239 | AH93: 0.3276 | AJ93: 0.35 | AK93: 0.93937 | AL93: 0.36718 | AM93: -0.57219 | AN93: 0.57219 | AO93: 0.3274
A94: 0.365 | B94: 0.93412 | C94: 1.00000 | D94: 0.06588 | E94: 0.06588 | F94: 0.0043 | H94: 0.365 | I94: 0.93412 | J94: 0.93477 | K94: 0.00065 | L94: 0.00065 | M94: 0.0000 | O94: 0.365 | P94: 0.93412 | Q94: 0.92469 | R94: -0.00943 | S94: 0.00943 | T94: 0.0001 | V94: 0.365 | W94: 0.93412 | X94: 0.85458 | Y94: -0.07954 | Z94: 0.07954 | AA94: 0.0063 | AC94: 0.365 | AD94: 0.93412 | AE94: 0.38298 | AF94: -0.55114 | AG94: 0.55114 | AH94: 0.3038 | AJ94: 0.365 | AK94: 0.93412 | AL94: 0.38323 | AM94: -0.55090 | AN94: 0.55090 | AO94: 0.3035
A95: 0.38 | B95: 0.92866 | C95: 1.00000 | D95: 0.07134 | E95: 0.07134 | F95: 0.0051 | H95: 0.38 | I95: 0.92866 | J95: 0.92993 | K95: 0.00126 | L95: 0.00126 | M95: 0.0000 | O95: 0.38 | P95: 0.92866 | Q95: 0.91864 | R95: -0.01003 | S95: 0.01003 | T95: 0.0001 | V95: 0.38 | W95: 0.92866 | X95: 0.84434 | Y95: -0.08433 | Z95: 0.08433 | AA95: 0.0071 | AC95: 0.38 | AD95: 0.92866 | AE95: 0.39895 | AF95: -0.52972 | AG95: 0.52972 | AH95: 0.2806 | AJ95: 0.38 | AK95: 0.92866 | AL95: 0.39926 | AM95: -0.52941 | AN95: 0.52941 | AO95: 0.2803
A96: 0.395 | B96: 0.92300 | C96: 1.00000 | D96: 0.07700 | E96: 0.07700 | F96: 0.0059 | H96: 0.395 | I96: 0.92300 | J96: 0.92491 | K96: 0.00191 | L96: 0.00191 | M96: 0.0000 | O96: 0.395 | P96: 0.92300 | Q96: 0.91237 | R96: -0.01062 | S96: 0.01062 | T96: 0.0001 | V96: 0.395 | W96: 0.92300 | X96: 0.83371 | Y96: -0.08929 | Z96: 0.08929 | AA96: 0.0080 | AC96: 0.395 | AD96: 0.92300 | AE96: 0.41488 | AF96: -0.50812 | AG96: 0.50812 | AH96: 0.2582 | AJ96: 0.395 | AK96: 0.92300 | AL96: 0.41527 | AM96: -0.50772 | AN96: 0.50772 | AO96: 0.2578
A97: 0.41 | B97: 0.91712 | C97: 1.00000 | D97: 0.08288 | E97: 0.08288 | F97: 0.0069 | H97: 0.41 | I97: 0.91712 | J97: 0.91972 | K97: 0.00260 | L97: 0.00260 | M97: 0.0000 | O97: 0.41 | P97: 0.91712 | Q97: 0.90590 | R97: -0.01122 | S97: 0.01122 | T97: 0.0001 | V97: 0.41 | W97: 0.91712 | X97: 0.82269 | Y97: -0.09443 | Z97: 0.09443 | AA97: 0.0089 | AC97: 0.41 | AD97: 0.91712 | AE97: 0.43077 | AF97: -0.48635 | AG97: 0.48635 | AH97: 0.2365 | AJ97: 0.41 | AK97: 0.91712 | AL97: 0.43127 | AM97: -0.48585 | AN97: 0.48585 | AO97: 0.2361
A98: 0.425 | B98: 0.91104 | C98: 1.00000 | D98: 0.08896 | E98: 0.08896 | F98: 0.0079 | H98: 0.425 | I98: 0.91104 | J98: 0.91436 | K98: 0.00332 | L98: 0.00332 | M98: 0.0000 | O98: 0.425 | P98: 0.91104 | Q98: 0.89922 | R98: -0.01182 | S98: 0.01182 | T98: 0.0001 | V98: 0.425 | W98: 0.91104 | X98: 0.81130 | Y98: -0.09974 | Z98: 0.09974 | AA98: 0.0099 | AC98: 0.425 | AD98: 0.91104 | AE98: 0.44662 | AF98: -0.46442 | AG98: 0.46442 | AH98: 0.2157 | AJ98: 0.425 | AK98: 0.91104 | AL98: 0.44724 | AM98: -0.46380 | AN98: 0.46380 | AO98: 0.2151
A99: 0.44 | B99: 0.90475 | C99: 1.00000 | D99: 0.09525 | E99: 0.09525 | F99: 0.0091 | H99: 0.44 | I99: 0.90475 | J99: 0.90883 | K99: 0.00408 | L99: 0.00408 | M99: 0.0000 | O99: 0.44 | P99: 0.90475 | Q99: 0.89234 | R99: -0.01241 | S99: 0.01241 | T99: 0.0002 | V99: 0.44 | W99: 0.90475 | X99: 0.79952 | Y99: -0.10523 | Z99: 0.10523 | AA99: 0.0111 | AC99: 0.44 | AD99: 0.90475 | AE99: 0.46242 | AF99: -0.44233 | AG99: 0.44233 | AH99: 0.1957 | AJ99: 0.44 | AK99: 0.90475 | AL99: 0.46318 | AM99: -0.44158 | AN99: 0.44158 | AO99: 0.1950
A100: =A99+(b-a)/200 -> 0.455 | B100: 0.89826 | C100: 1.00000 | D100: 0.10174 | E100: 0.10174 | F100: 0.0104 | H100: 0.455 | I100: 0.89826 | J100: 0.90313 | K100: 0.00487 | L100: 0.00487 | M100: 0.0000 | O100: =O99+(bb-aa)/200 -> 0.455 | P100: 0.89826 | Q100: 0.88525 | R100: -0.01301 | S100: 0.01301 | T100: 0.0002 | V100: =V99+(bbb-aaa)/200 -> 0.455 | W100: 0.89826 | X100: 0.78736 | Y100: -0.11090 | Z100: 0.11090 | AA100: 0.0123 | AC100: =AC99+(bbbb-aaaa)/200 -> 0.455 | AD100: 0.89826 | AE100: 0.47816 | AF100: -0.42010 | AG100: 0.42010 | AH100: 0.1765 | AJ100: =AJ99+(bbbbb-aaaaa)/200 -> 0.455 | AK100: 0.89826 | AL100: 0.47908 | AM100: -0.41918 | AN100: 0.41918 | AO100: 0.1757
A101: 0.47 | B101: 0.89157 | C101: 1.00000 | D101: 0.10843 | E101: 0.10843 | F101: 0.0118 | H101: 0.47 | I101: 0.89157 | J101: 0.89726 | K101: 0.00569 | L101: 0.00569 | M101: 0.0000 | O101: 0.47 | P101: 0.89157 | Q101: 0.87797 | R101: -0.01360 | S101: 0.01360 | T101: 0.0002 | V101: 0.47 | W101: 0.89157 | X101: 0.77482 | Y101: -0.11675 | Z101: 0.11675 | AA101: 0.0136 | AC101: 0.47 | AD101: 0.89157 | AE101: 0.49384 | AF101: -0.39773 | AG101: 0.39773 | AH101: 0.1582 | AJ101: 0.47 | AK101: 0.89157 | AL101: 0.49496 | AM101: -0.39661 | AN101: 0.39661 | AO101: 0.1573
A102: 0.485 | B102: 0.88467 | C102: 1.00000 | D102: 0.11533 | E102: 0.11533 | F102: 0.0133 | H102: 0.485 | I102: 0.88467 | J102: 0.89121 | K102: 0.00654 | L102: 0.00654 | M102: 0.0000 | O102: 0.485 | P102: 0.88467 | Q102: 0.87049 | R102: -0.01419 | S102: 0.01419 | T102: 0.0002 | V102: 0.485 | W102: 0.88467 | X102: 0.76189 | Y102: -0.12278 | Z102: 0.12278 | AA102: 0.0151 | AC102: 0.485 | AD102: 0.88467 | AE102: 0.50944 | AF102: -0.37523 | AG102: 0.37523 | AH102: 0.1408 | AJ102: 0.485 | AK102: 0.88467 | AL102: 0.51079 | AM102: -0.37388 | AN102: 0.37388 | AO102: 0.1398
A103: 0.5 | B103: 0.87758 | C103: 1.00000 | D103: 0.12242 | E103: 0.12242 | F103: 0.0150 | H103: 0.5 | I103: 0.87758 | J103: 0.88500 | K103: 0.00742 | L103: 0.00742 | M103: 0.0001 | O103: 0.5 | P103: 0.87758 | Q103: 0.86281 | R103: -0.01477 | S103: 0.01477 | T103: 0.0002 | V103: 0.5 | W103: 0.87758 | X103: 0.74859 | Y103: -0.12899 | Z103: 0.12899 | AA103: 0.0166 | AC103: 0.5 | AD103: 0.87758 | AE103: 0.52497 | AF103: -0.35261 | AG103: 0.35261 | AH103: 0.1243 | AJ103: 0.5 | AK103: 0.87758 | AL103: 0.52659 | AM103: -0.35099 | AN103: 0.35099 | AO103: 0.1232
A104: 0.515 | B104: 0.87029 | C104: 1.00000 | D104: 0.12971 | E104: 0.12971 | F104: 0.0168 | H104: 0.515 | I104: 0.87029 | J104: 0.87861 | K104: 0.00832 | L104: 0.00832 | M104: 0.0001 | O104: 0.515 | P104: 0.87029 | Q104: 0.85495 | R104: -0.01535 | S104: 0.01535 | T104: 0.0002 | V104: 0.515 | W104: 0.87029 | X104: 0.73491 | Y104: -0.13538 | Z104: 0.13538 | AA104: 0.0183 | AC104: 0.515 | AD104: 0.87029 | AE104: 0.54041 | AF104: -0.32988 | AG104: 0.32988 | AH104: 0.1088 | AJ104: 0.515 | AK104: 0.87029 | AL104: 0.54235 | AM104: -0.32794 | AN104: 0.32794 | AO104: 0.1075
A105: 0.53 | B105: 0.86281 | C105: 1.00000 | D105: 0.13719 | E105: 0.13719 | F105: 0.0188 | H105: 0.53 | I105: 0.86281 | J105: 0.87206 | K105: 0.00925 | L105: 0.00925 | M105: 0.0001 | O105: 0.53 | P105: 0.86281 | Q105: 0.84689 | R105: -0.01592 | S105: 0.01592 | T105: 0.0003 | V105: 0.53 | W105: 0.86281 | X105: 0.72085 | Y105: -0.14195 | Z105: 0.14195 | AA105: 0.0202 | AC105: 0.53 | AD105: 0.86281 | AE105: 0.55577 | AF105: -0.30704 | AG105: 0.30704 | AH105: 0.0943 | AJ105: 0.53 | AK105: 0.86281 | AL105: 0.55807 | AM105: -0.30473 | AN105: 0.30473 | AO105: 0.0929
A106: 0.545 | B106: 0.85513 | C106: 1.00000 | D106: 0.14487 | E106: 0.14487 | F106: 0.0210 | H106: 0.545 | I106: 0.85513 | J106: 0.86533 | K106: 0.01020 | L106: 0.01020 | M106: 0.0001 | O106: 0.545 | P106: 0.85513 | Q106: 0.83864 | R106: -0.01648 | S106: 0.01648 | T106: 0.0003 | V106: 0.545 | W106: 0.85513 | X106: 0.70642 | Y106: -0.14871 | Z106: 0.14871 | AA106: 0.0221 | AC106: 0.545 | AD106: 0.85513 | AE106: 0.57103 | AF106: -0.28410 | AG106: 0.28410 | AH106: 0.0807 | AJ106: 0.545 | AK106: 0.85513 | AL106: 0.57375 | AM106: -0.28137 | AN106: 0.28137 | AO106: 0.0792
A107: 0.56 | B107: 0.84726 | C107: 1.00000 | D107: 0.15274 | E107: 0.15274 | F107: 0.0233 | H107: 0.56 | I107: 0.84726 | J107: 0.85843 | K107: 0.01118 | L107: 0.01118 | M107: 0.0001 | O107: 0.56 | P107: 0.84726 | Q107: 0.83022 | R107: -0.01704 | S107: 0.01704 | T107: 0.0003 | V107: 0.56 | W107: 0.84726 | X107: 0.69160 | Y107: -0.15565 | Z107: 0.15565 | AA107: 0.0242 | AC107: 0.56 | AD107: 0.84726 | AE107: 0.58619 | AF107: -0.26107 | AG107: 0.26107 | AH107: 0.0682 | AJ107: 0.56 | AK107: 0.84726 | AL107: 0.58939 | AM107: -0.25786 | AN107: 0.25786 | AO107: 0.0665
A108: 0.575 | B108: 0.83919 | C108: 1.00000 | D108: 0.16081 | E108: 0.16081 | F108: 0.0259 | H108: 0.575 | I108: 0.83919 | J108: 0.85136 | K108: 0.01217 | L108: 0.01217 | M108: 0.0001 | O108: 0.575 | P108: 0.83919 | Q108: 0.82161 | R108: -0.01759 | S108: 0.01759 | T108: 0.0003 | V108: 0.575 | W108: 0.83919 | X108: 0.67641 | Y108: -0.16279 | Z108: 0.16279 | AA108: 0.0265 | AC108: 0.575 | AD108: 0.83919 | AE108: 0.60123 | AF108: -0.23796 | AG108: 0.23796 | AH108: 0.0566 | AJ108: 0.575 | AK108: 0.83919 | AL108: 0.60499 | AM108: -0.23420 | AN108: 0.23420 | AO108: 0.0548
A109: 0.59 | B109: 0.83094 | C109: 1.00000 | D109: 0.16906 | E109: 0.16906 | F109: 0.0286 | H109: 0.59 | I109: 0.83094 | J109: 0.84412 | K109: 0.01318 | L109: 0.01318 | M109: 0.0002 | O109: 0.59 | P109: 0.83094 | Q109: 0.81282 | R109: -0.01812 | S109: 0.01812 | T109: 0.0003 | V109: 0.59 | W109: 0.83094 | X109: 0.66083 | Y109: -0.17011 | Z109: 0.17011 | AA109: 0.0289 | AC109: 0.59 | AD109: 0.83094 | AE109: 0.61617 | AF109: -0.21477 | AG109: 0.21477 | AH109: 0.0461 | AJ109: 0.59 | AK109: 0.83094 | AL109: 0.62056 | AM109: -0.21039 | AN109: 0.21039 | AO109: 0.0443
A110: 0.605 | B110: 0.82250 | C110: 1.00000 | D110: 0.17750 | E110: 0.17750 | F110: 0.0315 | H110: 0.605 | I110: 0.82250 | J110: 0.83671 | K110: 0.01421 | L110: 0.01421 | M110: 0.0002 | O110: 0.605 | P110: 0.82250 | Q110: 0.80385 | R110: -0.01865 | S110: 0.01865 | T110: 0.0003 | V110: 0.605 | W110: 0.82250 | X110: 0.64488 | Y110: -0.17762 | Z110: 0.17762 | AA110: 0.0315 | AC110: 0.605 | AD110: 0.82250 | AE110: 0.63098 | AF110: -0.19152 | AG110: 0.19152 | AH110: 0.0367 | AJ110: 0.605 | AK110: 0.82250 | AL110: 0.63608 | AM110: -0.18642 | AN110: 0.18642 | AO110: 0.0348
A111: 0.62 | B111: 0.81388 | C111: 1.00000 | D111: 0.18612 | E111: 0.18612 | F111: 0.0346 | H111: 0.62 | I111: 0.81388 | J111: 0.82913 | K111: 0.01525 | L111: 0.01525 | M111: 0.0002 | O111: 0.62 | P111: 0.81388 | Q111: 0.79471 | R111: -0.01917 | S111: 0.01917 | T111: 0.0004 | V111: 0.62 | W111: 0.81388 | X111: 0.62855 | Y111: -0.18533 | Z111: 0.18533 | AA111: 0.0343 | AC111: 0.62 | AD111: 0.81388 | AE111: 0.64567 | AF111: -0.16821 | AG111: 0.16821 | AH111: 0.0283 | AJ111: 0.62 | AK111: 0.81388 | AL111: 0.65158 | AM111: -0.16230 | AN111: 0.16230 | AO111: 0.0263
A112: 0.635 | B112: 0.80507 | C112: 1.00000 | D112: 0.19493 | E112: 0.19493 | F112: 0.0380 | H112: 0.635 | I112: 0.80507 | J112: 0.82137 | K112: 0.01630 | L112: 0.01630 | M112: 0.0003 | O112: 0.635 | P112: 0.80507 | Q112: 0.78540 | R112: -0.01967 | S112: 0.01967 | T112: 0.0004 | V112: 0.635 | W112: 0.80507 | X112: 0.61184 | Y112: -0.19323 | Z112: 0.19323 | AA112: 0.0373 | AC112: 0.635 | AD112: 0.80507 | AE112: 0.66022 | AF112: -0.14485 | AG112: 0.14485 | AH112: 0.0210 | AJ112: 0.635 | AK112: 0.80507 | AL112: 0.66704 | AM112: -0.13803 | AN112: 0.13803 | AO112: 0.0191
A113: 0.65 | B113: 0.79608 | C113: 1.00000 | D113: 0.20392 | E113: 0.20392 | F113: 0.0416 | H113: 0.65 | I113: 0.79608 | J113: 0.81345 | K113: 0.01737 | L113: 0.01737 | M113: 0.0003 | O113: 0.65 | P113: 0.79608 | Q113: 0.77592 | R113: -0.02017 | S113: 0.02017 | T113: 0.0004 | V113: 0.65 | W113: 0.79608 | X113: 0.59475 | Y113: -0.20134 | Z113: 0.20134 | AA113: 0.0405 | AC113: 0.65 | AD113: 0.79608 | AE113: 0.67464 | AF113: -0.12145 | AG113: 0.12145 | AH113: 0.0147 | AJ113: 0.65 | AK113: 0.79608 | AL113: 0.68248 | AM113: -0.11360 | AN113: 0.11360 | AO113: 0.0129
A114: 0.665 | B114: 0.78692 | C114: 1.00000 | D114: 0.21308 | E114: 0.21308 | F114: 0.0454 | H114: 0.665 | I114: 0.78692 | J114: 0.80535 | K114: 0.01844 | L114: 0.01844 | M114: 0.0003 | O114: 0.665 | P114: 0.78692 | Q114: 0.76627 | R114: -0.02065 | S114: 0.02065 | T114: 0.0004 | V114: 0.665 | W114: 0.78692 | X114: 0.57727 | Y114: -0.20964 | Z114: 0.20964 | AA114: 0.0440 | AC114: 0.665 | AD114: 0.78692 | AE114: 0.68891 | AF114: -0.09801 | AG114: 0.09801 | AH114: 0.0096 | AJ114: 0.665 | AK114: 0.78692 | AL114: 0.69790 | AM114: -0.08901 | AN114: 0.08901 | AO114: 0.0079
A115: 0.68 | B115: 0.77757 | C115: 1.00000 | D115: 0.22243 | E115: 0.22243 | F115: 0.0495 | H115: 0.68 | I115: 0.77757 | J115: 0.79709 | K115: 0.01952 | L115: 0.01952 | M115: 0.0004 | O115: 0.68 | P115: 0.77757 | Q115: 0.75645 | R115: -0.02112 | S115: 0.02112 | T115: 0.0004 | V115: 0.68 | W115: 0.77757 | X115: 0.55942 | Y115: -0.21815 | Z115: 0.21815 | AA115: 0.0476 | AC115: 0.68 | AD115: 0.77757 | AE115: 0.70303 | AF115: -0.07454 | AG115: 0.07454 | AH115: 0.0056 | AJ115: 0.68 | AK115: 0.77757 | AL115: 0.71331 | AM115: -0.06426 | AN115: 0.06426 | AO115: 0.0041
A116: 0.695 | B116: 0.76805 | C116: 1.00000 | D116: 0.23195 | E116: 0.23195 | F116: 0.0538 | H116: 0.695 | I116: 0.76805 | J116: 0.78865 | K116: 0.02060 | L116: 0.02060 | M116: 0.0004 | O116: 0.695 | P116: 0.76805 | Q116: 0.74648 | R116: -0.02158 | S116: 0.02158 | T116: 0.0005 | V116: 0.695 | W116: 0.76805 | X116: 0.54118 | Y116: -0.22687 | Z116: 0.22687 | AA116: 0.0515 | AC116: 0.695 | AD116: 0.76805 | AE116: 0.71699 | AF116: -0.05106 | AG116: 0.05106 | AH116: 0.0026 | AJ116: 0.695 | AK116: 0.76805 | AL116: 0.72871 | AM116: -0.03934 | AN116: 0.03934 | AO116: 0.0015
A117: 0.71 | B117: 0.75836 | C117: 1.00000 | D117: 0.24164 | E117: 0.24164 | F117: 0.0584 | H117: 0.71 | I117: 0.75836 | J117: 0.78004 | K117: 0.02168 | L117: 0.02168 | M117: 0.0005 | O117: 0.71 | P117: 0.75836 | Q117: 0.73634 | R117: -0.02202 | S117: 0.02202 | T117: 0.0005 | V117: 0.71 | W117: 0.75836 | X117: 0.52256 | Y117: -0.23580 | Z117: 0.23580 | AA117: 0.0556 | AC117: 0.71 | AD117: 0.75836 | AE117: 0.73080 | AF117: -0.02757 | AG117: 0.02757 | AH117: 0.0008 | AJ117: 0.71 | AK117: 0.75836 | AL117: 0.74412 | AM117: -0.01424 | AN117: 0.01424 | AO117: 0.0002
A118: 0.725 | B118: 0.74850 | C118: 1.00000 | D118: 0.25150 | E118: 0.25150 | F118: 0.0633 | H118: 0.725 | I118: 0.74850 | J118: 0.77126 | K118: 0.02276 | L118: 0.02276 | M118: 0.0005 | O118: 0.725 | P118: 0.74850 | Q118: 0.72605 | R118: -0.02245 | S118: 0.02245 | T118: 0.0005 | V118: 0.725 | W118: 0.74850 | X118: 0.50356 | Y118: -0.24494 | Z118: 0.24494 | AA118: 0.0600 | AC118: 0.725 | AD118: 0.74850 | AE118: 0.74443 | AF118: -0.00407 | AG118: 0.00407 | AH118: 0.0000 | AJ118: 0.725 | AK118: 0.74850 | AL118: 0.75953 | AM118: 0.01103 | AN118: 0.01103 | AO118: 0.0001
A119: 0.74 | B119: 0.73847 | C119: 1.00000 | D119: 0.26153 | E119: 0.26153 | F119: 0.0684 | H119: 0.74 | I119: 0.73847 | J119: 0.76231 | K119: 0.02384 | L119: 0.02384 | M119: 0.0006 | O119: 0.74 | P119: 0.73847 | Q119: 0.71560 | R119: -0.02286 | S119: 0.02286 | T119: 0.0005 | V119: 0.74 | W119: 0.73847 | X119: 0.48417 | Y119: -0.25430 | Z119: 0.25430 | AA119: 0.0647 | AC119: 0.74 | AD119: 0.73847 | AE119: 0.75789 | AF119: 0.01942 | AG119: 0.01942 | AH119: 0.0004 | AJ119: 0.74 | AK119: 0.73847 | AL119: 0.77497 | AM119: 0.03650 | AN119: 0.03650 | AO119: 0.0013
A120: 0.755 | B120: 0.72827 | C120: 1.00000 | D120: 0.27173 | E120: 0.27173 | F120: 0.0738 | H120: 0.755 | I120: 0.72827 | J120: 0.75319 | K120: 0.02492 | L120: 0.02492 | M120: 0.0006 | O120: 0.755 | P120: 0.72827 | Q120: 0.70500 | R120: -0.02327 | S120: 0.02327 | T120: 0.0005 | V120: 0.755 | W120: 0.72827 | X120: 0.46439 | Y120: -0.26388 | Z120: 0.26388 | AA120: 0.0696 | AC120: 0.755 | AD120: 0.72827 | AE120: 0.77118 | AF120: 0.04291 | AG120: 0.04291 | AH120: 0.0018 | AJ120: 0.755 | AK120: 0.72827 | AL120: 0.79044 | AM120: 0.06217 | AN120: 0.06217 | AO120: 0.0039
A121: 0.77 | B121: 0.71791 | C121: 1.00000 | D121: 0.28209 | E121: 0.28209 | F121: 0.0796 | H121: 0.77 | I121: 0.71791 | J121: 0.74390 | K121: 0.02599 | L121: 0.02599 | M121: 0.0007 | O121: 0.77 | P121: 0.71791 | Q121: 0.69426 | R121: -0.02365 | S121: 0.02365 | T121: 0.0006 | V121: 0.77 | W121: 0.71791 | X121: 0.44422 | Y121: -0.27369 | Z121: 0.27369 | AA121: 0.0749 | AC121: 0.77 | AD121: 0.71791 | AE121: 0.78428 | AF121: 0.06637 | AG121: 0.06637 | AH121: 0.0044 | AJ121: 0.77 | AK121: 0.71791 | AL121: 0.80595 | AM121: 0.08804 | AN121: 0.08804 | AO121: 0.0078
A122: 0.785 | B122: 0.70739 | C122: 1.00000 | D122: 0.29261 | E122: 0.29261 | F122: 0.0856 | H122: 0.785 | I122: 0.70739 | J122: 0.73443 | K122: 0.02705 | L122: 0.02705 | M122: 0.0007 | O122: 0.785 | P122: 0.70739 | Q122: 0.68336 | R122: -0.02403 | S122: 0.02403 | T122: 0.0006 | V122: 0.785 | W122: 0.70739 | X122: 0.42367 | Y122: -0.28372 | Z122: 0.28372 | AA122: 0.0805 | AC122: 0.785 | AD122: 0.70739 | AE122: 0.79719 | AF122: 0.08980 | AG122: 0.08980 | AH122: 0.0081 | AJ122: 0.785 | AK122: 0.70739 | AL122: 0.82153 | AM122: 0.11414 | AN122: 0.11414 | AO122: 0.0130
A123: 0.8 | B123: 0.69671 | C123: 1.00000 | D123: 0.30329 | E123: 0.30329 | F123: 0.0920 | H123: 0.8 | I123: 0.69671 | J123: 0.72480 | K123: 0.02809 | L123: 0.02809 | M123: 0.0008 | O123: 0.8 | P123: 0.69671 | Q123: 0.67232 | R123: -0.02439 | S123: 0.02439 | T123: 0.0006 | V123: 0.8 | W123: 0.69671 | X123: 0.40272 | Y123: -0.29399 | Z123: 0.29399 | AA123: 0.0864 | AC123: 0.8 | AD123: 0.69671 | AE123: 0.80991 | AF123: 0.11321 | AG123: 0.11321 | AH123: 0.0128 | AJ123: 0.8 | AK123: 0.69671 | AL123: 0.83718 | AM123: 0.14047 | AN123: 0.14047 | AO123: 0.0197
A124: 0.815 | B124: 0.68587 | C124: 1.00000 | D124: 0.31413 | E124: 0.31413 | F124: 0.0987 | H124: 0.815 | I124: 0.68587 | J124: 0.71499 | K124: 0.02913 | L124: 0.02913 | M124: 0.0008 | O124: 0.815 | P124: 0.68587 | Q124: 0.66114 | R124: -0.02473 | S124: 0.02473 | T124: 0.0006 | V124: 0.815 | W124: 0.68587 | X124: 0.38138 | Y124: -0.30449 | Z124: 0.30449 | AA124: 0.0927 | AC124: 0.815 | AD124: 0.68587 | AE124: 0.82243 | AF124: 0.13657 | AG124: 0.13657 | AH124: 0.0187 | AJ124: 0.815 | AK124: 0.68587 | AL124: 0.85291 | AM124: 0.16704 | AN124: 0.16704 | AO124: 0.0279
A125: 0.83 | B125: 0.67488 | C125: 1.00000 | D125: 0.32512 | E125: 0.32512 | F125: 0.1057 | H125: 0.83 | I125: 0.67488 | J125: 0.70502 | K125: 0.03014 | L125: 0.03014 | M125: 0.0009 | O125: 0.83 | P125: 0.67488 | Q125: 0.64981 | R125: -0.02506 | S125: 0.02506 | T125: 0.0006 | V125: 0.83 | W125: 0.67488 | X125: 0.35964 | Y125: -0.31523 | Z125: 0.31523 | AA125: 0.0994 | AC125: 0.83 | AD125: 0.67488 | AE125: 0.83475 | AF125: 0.15988 | AG125: 0.15988 | AH125: 0.0256 | AJ125: 0.83 | AK125: 0.67488 | AL125: 0.86876 | AM125: 0.19388 | AN125: 0.19388 | AO125: 0.0376
A126: 0.845 | B126: 0.66373 | C126: 1.00000 | D126: 0.33627 | E126: 0.33627 | F126: 0.1131 | H126: 0.845 | I126: 0.66373 | J126: 0.69487 | K126: 0.03114 | L126: 0.03114 | M126: 0.0010 | O126: 0.845 | P126: 0.66373 | Q126: 0.63836 | R126: -0.02538 | S126: 0.02538 | T126: 0.0006 | V126: 0.845 | W126: 0.66373 | X126: 0.33751 | Y126: -0.32622 | Z126: 0.32622 | AA126: 0.1064 | AC126: 0.845 | AD126: 0.66373 | AE126: 0.84687 | AF126: 0.18314 | AG126: 0.18314 | AH126: 0.0335 | AJ126: 0.845 | AK126: 0.66373 | AL126: 0.88473 | AM126: 0.22100 | AN126: 0.22100 | AO126: 0.0488
A127: 0.86 | B127: 0.65244 | C127: 1.00000 | D127: 0.34756 | E127: 0.34756 | F127: 0.1208 | H127: 0.86 | I127: 0.65244 | J127: 0.68455 | K127: 0.03211 | L127: 0.03211 | M127: 0.0010 | O127: 0.86 | P127: 0.65244 | Q127: 0.62676 | R127: -0.02568 | S127: 0.02568 | T127: 0.0007 | V127: 0.86 | W127: 0.65244 | X127: 0.31498 | Y127: -0.33746 | Z127: 0.33746 | AA127: 0.1139 | AC127: 0.86 | AD127: 0.65244 | AE127: 0.85877 | AF127: 0.20633 | AG127: 0.20633 | AH127: 0.0426 | AJ127: 0.86 | AK127: 0.65244 | AL127: 0.90085 | AM127: 0.24841 | AN127: 0.24841 | AO127: 0.0617
A128: 0.875 | B128: 0.64100 | C128: 1.00000 | D128: 0.35900 | E128: 0.35900 | F128: 0.1289 | H128: 0.875 | I128: 0.64100 | J128: 0.67406 | K128: 0.03307 | L128: 0.03307 | M128: 0.0011 | O128: 0.875 | P128: 0.64100 | Q128: 0.61503 | R128: -0.02596 | S128: 0.02596 | T128: 0.0007 | V128: 0.875 | W128: 0.64100 | X128: 0.29204 | Y128: -0.34895 | Z128: 0.34895 | AA128: 0.1218 | AC128: 0.875 | AD128: 0.64100 | AE128: 0.87046 | AF128: 0.22946 | AG128: 0.22946 | AH128: 0.0527 | AJ128: 0.875 | AK128: 0.64100 | AL128: 0.91713 | AM128: 0.27613 | AN128: 0.27613 | AO128: 0.0763
A129: 0.89 | B129: 0.62941 | C129: 1.00000 | D129: 0.37059 | E129: 0.37059 | F129: 0.1373 | H129: 0.89 | I129: 0.62941 | J129: 0.66340 | K129: 0.03399 | L129: 0.03399 | M129: 0.0012 | O129: 0.89 | P129: 0.62941 | Q129: 0.60318 | R129: -0.02623 | S129: 0.02623 | T129: 0.0007 | V129: 0.89 | W129: 0.62941 | X129: 0.26871 | Y129: -0.36070 | Z129: 0.36070 | AA129: 0.1301 | AC129: 0.89 | AD129: 0.62941 | AE129: 0.88192 | AF129: 0.25251 | AG129: 0.25251 | AH129: 0.0638 | AJ129: 0.89 | AK129: 0.62941 | AL129: 0.93361 | AM129: 0.30420 | AN129: 0.30420 | AO129: 0.0925
A130: 0.905 | B130: 0.61769 | C130: 1.00000 | D130: 0.38231 | E130: 0.38231 | F130: 0.1462 | H130: 0.905 | I130: 0.61769 | J130: 0.65257 | K130: 0.03488 | L130: 0.03488 | M130: 0.0012 | O130: 0.905 | P130: 0.61769 | Q130: 0.59119 | R130: -0.02649 | S130: 0.02649 | T130: 0.0007 | V130: 0.905 | W130: 0.61769 | X130: 0.24496 | Y130: -0.37272 | Z130: 0.37272 | AA130: 0.1389 | AC130: 0.905 | AD130: 0.61769 | AE130: 0.89317 | AF130: 0.27548 | AG130: 0.27548 | AH130: 0.0759 | AJ130: 0.905 | AK130: 0.61769 | AL130: 0.95031 | AM130: 0.33262 | AN130: 0.33262 | AO130: 0.1106
A131: 0.92 | B131: 0.60582 | C131: =aa00+bb00*A131 -> 1.00000 | D131: 0.39418 | E131: 0.39418 | F131: 0.1554 | H131: 0.92 | I131: 0.60582 | J131: =a0+b0*A131+c0*A131^2 -> 0.64157 | K131: 0.03575 | L131: 0.03575 | M131: 0.0013 | O131: 0.92 | P131: 0.60582 | Q131: =a00+b00*O131+c00*O131^2+d00*A131^3 -> 0.57909 | R131: -0.02673 | S131: 0.02673 | T131: 0.0007 | V131: 0.92 | W131: 0.60582 | X131: =a000+b000*V131+c000*V131^2+d000*O131^3+e000*O131^4 -> 0.22081 | Y131: -0.38501 | Z131: 0.38501 | AA131: 0.1482 | AC131: 0.92 | AD131: 0.60582 | AE131: =a0000+b0000*AC131+c0000*AC131^2+d0000*AC131^3+e0000*AC131^4+f0000*AC131^5 -> 0.90419 | AF131: 0.29837 | AG131: 0.29837 | AH131: 0.0890 | AJ131: 0.92 | AK131: 0.60582 | AL131: =a0000+b0000*AJ131+c0000*AJ131^2+d0000*AJ131^3+e0000*AJ131^4+f0000*AJ131^5+g00000*AJ131^6 -> 0.96725 | AM131: 0.36143 | AN131: 0.36143 | AO131: 0.1306
A132: =A131+(b-a)/200 -> 0.935 | B132: =COS(A132) -> 0.59382 | C132: 1.00000 | D132: =C132-B132 -> 0.40618 | E132: =ABS(D132) -> 0.40618 | F132: =D132^2 -> 0.1650 | H132: =H131+(b-a)/200 -> 0.935 | I132: =COS(H132) -> 0.59382 | J132: 0.63039 | K132: =J132-I132 -> 0.03658 | L132: =ABS(K132) -> 0.03658 | M132: =K132^2 -> 0.0013 | O132: =O131+(bb-aa)/200 -> 0.935 | P132: =COS(O132) -> 0.59382 | Q132: 0.56685 | R132: =Q132-P132 -> -0.02696 | S132: =ABS(R132) -> 0.02696 | T132: =R132^2 -> 0.0007 | V132: =V131+(bbb-aaa)/200 -> 0.935 | W132: =COS(V132) -> 0.59382 | X132: 0.19625 | Y132: =X132-W132 -> -0.39757 | Z132: =ABS(Y132) -> 0.39757 | AA132: =Y132^2 -> 0.1581 | AC132: =AC131+(bbbb-aaaa)/200 -> 0.935 | AD132: =COS(AC132) -> 0.59382 | AE132: 0.91498 | AF132: =AE132-AD132 -> 0.32116 | AG132: =ABS(AF132) -> 0.32116 | AH132: =AF132^2 -> 0.1031 | AJ132: =AJ131+(bbbbb-aaaaa)/200 -> 0.935 | AK132: =COS(AJ132) -> 0.59382 | AL132: 0.98446 | AM132: =AL132-AK132 -> 0.39065 | AN132: =ABS(AM132) -> 0.39065 | AO132: =AM132^2 -> 0.1526
A133: 0.95 | B133: 0.58168 | C133: 1.00000 | D133: 0.41832 | E133: 0.41832 | F133: 0.1750 | H133: 0.95 | I133: 0.58168 | J133: 0.61905 | K133: 0.03737 | L133: 0.03737 | M133: 0.0014 | O133: 0.95 | P133: 0.58168 | Q133: 0.55450 | R133: -0.02718 | S133: 0.02718 | T133: 0.0007 | V133: 0.95 | W133: 0.58168 | X133: 0.17128 | Y133: -0.41041 | Z133: 0.41041 | AA133: 0.1684 | AC133: 0.95 | AD133: 0.58168 | AE133: 0.92553 | AF133: 0.34385 | AG133: 0.34385 | AH133: 0.1182 | AJ133: 0.95 | AK133: 0.58168 | AL133: 1.00198 | AM133: 0.42030 | AN133: 0.42030 | AO133: 0.1767
A134: 0.965 | B134: 0.56942 | C134: 1.00000 | D134: 0.43058 | E134: 0.43058 | F134: 0.1854 | H134: 0.965 | I134: 0.56942 | J134: 0.60753 | K134: 0.03812 | L134: 0.03812 | M134: 0.0015 | O134: 0.965 | P134: 0.56942 | Q134: 0.54204 | R134: -0.02738 | S134: 0.02738 | T134: 0.0007 | V134: 0.965 | W134: 0.56942 | X134: 0.14588 | Y134: -0.42353 | Z134: 0.42353 | AA134: 0.1794 | AC134: 0.965 | AD134: 0.56942 | AE134: 0.93585 | AF134: 0.36644 | AG134: 0.36644 | AH134: 0.1343 | AJ134: 0.965 | AK134: 0.56942 | AL134: 1.01984 | AM134: 0.45042 | AN134: 0.45042 | AO134: 0.2029
A135: 0.98 | B135: 0.55702 | C135: 1.00000 | D135: 0.44298 | E135: 0.44298 | F135: 0.1962 | H135: 0.98 | I135: 0.55702 | J135: 0.59585 | K135: 0.03883 | L135: 0.03883 | M135: 0.0015 | O135: 0.98 | P135: 0.55702 | Q135: 0.52945 | R135: -0.02757 | S135: 0.02757 | T135: 0.0008 | V135: 0.98 | W135: 0.55702 | X135: 0.12007 | Y135: -0.43695 | Z135: 0.43695 | AA135: 0.1909 | AC135: 0.98 | AD135: 0.55702 | AE135: 0.94593 | AF135: 0.38891 | AG135: 0.38891 | AH135: 0.1513 | AJ135: 0.98 | AK135: 0.55702 | AL135: 1.03806 | AM135: 0.48104 | AN135: 0.48104 | AO135: 0.2314
A136: 0.995 | B136: 0.54450 | C136: 1.00000 | D136: 0.45550 | E136: 0.45550 | F136: 0.2075 | H136: 0.995 | I136: 0.54450 | J136: 0.58399 | K136: 0.03949 | L136: 0.03949 | M136: 0.0016 | O136: 0.995 | P136: 0.54450 | Q136: 0.51676 | R136: -0.02775 | S136: 0.02775 | T136: 0.0008 | V136: 0.995 | W136: 0.54450 | X136: 0.09384 | Y136: -0.45066 | Z136: 0.45066 | AA136: 0.2031 | AC136: 0.995 | AD136: 0.54450 | AE136: 0.95577 | AF136: 0.41127 | AG136: 0.41127 | AH136: 0.1691 | AJ136: 0.995 | AK136: 0.54450 | AL136: 1.05669 | AM136: 0.51219 | AN136: 0.51219 | AO136: 0.2623
A137: 1.01 | B137: 0.53186 | C137: 1.00000 | D137: 0.46814 | E137: 0.46814 | F137: 0.2192 | H137: 1.01 | I137: 0.53186 | J137: 0.57196 | K137: 0.04010 | L137: 0.04010 | M137: 0.0016 | O137: 1.01 | P137: 0.53186 | Q137: 0.50395 | R137: -0.02791 | S137: 0.02791 | T137: 0.0008 | V137: 1.01 | W137: 0.53186 | X137: 0.06718 | Y137: -0.46468 | Z137: 0.46468 | AA137: 0.2159 | AC137: 1.01 | AD137: 0.53186 | AE137: 0.96537 | AF137: 0.43351 | AG137: 0.43351 | AH137: 0.1879 | AJ137: 1.01 | AK137: 0.53186 | AL137: 1.07577 | AM137: 0.54391 | AN137: 0.54391 | AO137: 0.2958
A138: 1.025 | B138: 0.51910 | C138: 1.00000 | D138: 0.48090 | E138: 0.48090 | F138: 0.2313 | H138: 1.025 | I138: 0.51910 | J138: 0.55976 | K138: 0.04066 | L138: 0.04066 | M138: 0.0017 | O138: 1.025 | P138: 0.51910 | Q138: 0.49104 | R138: -0.02806 | S138: 0.02806 | T138: 0.0008 | V138: 1.025 | W138: 0.51910 | X138: 0.04009 | Y138: -0.47901 | Z138: 0.47901 | AA138: 0.2294 | AC138: 1.025 | AD138: 0.51910 | AE138: 0.97472 | AF138: 0.45562 | AG138: 0.45562 | AH138: 0.2076 | AJ138: 1.025 | AK138: 0.51910 | AL138: 1.09533 | AM138: 0.57623 | AN138: 0.57623 | AO138: 0.3320
A139: 1.04 | B139: 0.50622 | C139: 1.00000 | D139: 0.49378 | E139: 0.49378 | F139: 0.2438 | H139: 1.04 | I139: 0.50622 | J139: 0.54739 | K139: 0.04117 | L139: 0.04117 | M139: 0.0017 | O139: 1.04 | P139: 0.50622 | Q139: 0.47802 | R139: -0.02820 | S139: 0.02820 | T139: 0.0008 | V139: 1.04 | W139: 0.50622 | X139: 0.01257 | Y139: -0.49365 | Z139: 0.49365 | AA139: 0.2437 | AC139: 1.04 | AD139: 0.50622 | AE139: 0.98383 | AF139: 0.47761 | AG139: 0.47761 | AH139: 0.2281 | AJ139: 1.04 | AK139: 0.50622 | AL139: 1.11542 | AM139: 0.60920 | AN139: 0.60920 | AO139: 0.3711
A140: 1.055 | B140: 0.49323 | C140: 1.00000 | D140: 0.50677 | E140: 0.50677 | F140: 0.2568 | H140: 1.055 | I140: 0.49323 | J140: 0.53485 | K140: 0.04162 | L140: 0.04162 | M140: 0.0017 | O140: 1.055 | P140: 0.49323 | Q140: 0.46490 | R140: -0.02833 | S140: 0.02833 | T140: 0.0008 | V140: 1.055 | W140: 0.49323 | X140: -0.01538 | Y140: -0.50861 | Z140: 0.50861 | AA140: 0.2587 | AC140: 1.055 | AD140: 0.49323 | AE140: 0.99268 | AF140: 0.49945 | AG140: 0.49945 | AH140: 0.2495 | AJ140: 1.055 | AK140: 0.49323 | AL140: 1.13608 | AM140: 0.64285 | AN140: 0.64285 | AO140: 0.4133
A141: 1.07 | B141: 0.48012 | C141: 1.00000 | D141: 0.51988 | E141: 0.51988 | F141: 0.2703 | H141: 1.07 | I141: 0.48012 | J141: 0.52214 | K141: 0.04201 | L141: 0.04201 | M141: 0.0018 | O141: 1.07 | P141: 0.48012 | Q141: 0.45168 | R141: -0.02845 | S141: 0.02845 | T141: 0.0008 | V141: 1.07 | W141: 0.48012 | X141: -0.04377 | Y141: -0.52390 | Z141: 0.52390 | AA141: 0.2745 | AC141: 1.07 | AD141: 0.48012 | AE141: 1.00129 | AF141: 0.52116 | AG141: 0.52116 | AH141: 0.2716 | AJ141: 1.07 | AK141: 0.48012 | AL141: 1.15736 | AM141: 0.67724 | AN141: 0.67724 | AO141: 0.4587
A142: 1.085 | B142: 0.46691 | C142: 1.00000 | D142: 0.53309 | E142: 0.53309 | F142: 0.2842 | H142: 1.085 | I142: 0.46691 | J142: 0.50925 | K142: 0.04234 | L142: 0.04234 | M142: 0.0018 | O142: 1.085 | P142: 0.46691 | Q142: 0.43836 | R142: -0.02855 | S142: 0.02855 | T142: 0.0008 | V142: 1.085 | W142: 0.46691 | X142: -0.07261 | Y142: -0.53952 | Z142: 0.53952 | AA142: 0.2911 | AC142: 1.085 | AD142: 0.46691 | AE142: 1.00964 | AF142: 0.54273 | AG142: 0.54273 | AH142: 0.2946 | AJ142: 1.085 | AK142: 0.46691 | AL142: 1.17931 | AM142: 0.71240 | AN142: 0.71240 | AO142: 0.5075
A143: 1.1 | B143: 0.45360 | C143: 1.00000 | D143: 0.54640 | E143: 0.54640 | F143: 0.2986 | H143: 1.1 | I143: 0.45360 | J143: 0.49620 | K143: 0.04260 | L143: 0.04260 | M143: 0.0018 | O143: 1.1 | P143: 0.45360 | Q143: 0.42495 | R143: -0.02865 | S143: 0.02865 | T143: 0.0008 | V143: 1.1 | W143: 0.45360 | X143: -0.10189 | Y143: -0.55549 | Z143: 0.55549 | AA143: 0.3086 | AC143: 1.1 | AD143: 0.45360 | AE143: 1.01774 | AF143: 0.56415 | AG143: 0.56415 | AH143: 0.3183 | AJ143: 1.1 | AK143: 0.45360 | AL143: 1.20199 | AM143: 0.74839 | AN143: 0.74839 | AO143: 0.5601
A144: 1.115 | B144: 0.44018 | C144: 1.00000 | D144: 0.55982 | E144: 0.55982 | F144: 0.3134 | H144: 1.115 | I144: 0.44018 | J144: 0.48297 | K144: 0.04280 | L144: 0.04280 | M144: 0.0018 | O144: 1.115 | P144: 0.44018 | Q144: 0.41144 | R144: -0.02874 | S144: 0.02874 | T144: 0.0008 | V144: 1.115 | W144: 0.44018 | X144: -0.13162 | Y144: -0.57180 | Z144: 0.57180 | AA144: 0.3270 | AC144: 1.115 | AD144: 0.44018 | AE144: 1.02559 | AF144: 0.58542 | AG144: 0.58542 | AH144: 0.3427 | AJ144: 1.115 | AK144: 0.44018 | AL144: 1.22543 | AM144: 0.78526 | AN144: 0.78526 | AO144: 0.6166
A145: 1.13 | B145: 0.42666 | C145: 1.00000 | D145: 0.57334 | E145: 0.57334 | F145: 0.3287 | H145: 1.13 | I145: 0.42666 | J145: 0.46958 | K145: 0.04292 | L145: 0.04292 | M145: 0.0018 | O145: 1.13 | P145: 0.42666 | Q145: 0.39785 | R145: -0.02881 | S145: 0.02881 | T145: 0.0008 | V145: 1.13 | W145: 0.42666 | X145: -0.16181 | Y145: -0.58847 | Z145: 0.58847 | AA145: 0.3463 | AC145: 1.13 | AD145: 0.42666 | AE145: 1.03319 | AF145: 0.60653 | AG145: 0.60653 | AH145: 0.3679 | AJ145: 1.13 | AK145: 0.42666 | AL145: 1.24971 | AM145: 0.82305 | AN145: 0.82305 | AO145: 0.6774
A146: 1.145 | B146: 0.41305 | C146: 1.00000 | D146: 0.58695 | E146: 0.58695 | F146: 0.3445 | H146: 1.145 | I146: 0.41305 | J146: 0.45601 | K146: 0.04296 | L146: 0.04296 | M146: 0.0018 | O146: 1.145 | P146: 0.41305 | Q146: 0.38416 | R146: -0.02888 | S146: 0.02888 | T146: 0.0008 | V146: 1.145 | W146: 0.41305 | X146: -0.19245 | Y146: -0.60550 | Z146: 0.60550 | AA146: 0.3666 | AC146: 1.145 | AD146: 0.41305 | AE146: 1.04054 | AF146: 0.62749 | AG146: 0.62749 | AH146: 0.3937 | AJ146: 1.145 | AK146: 0.41305 | AL146: 1.27489 | AM146: 0.86184 | AN146: 0.86184 | AO146: 0.7428
A147: 1.16 | B147: 0.39934 | C147: 1.00000 | D147: 0.60066 | E147: 0.60066 | F147: 0.3608 | H147: 1.16 | I147: 0.39934 | J147: 0.44227 | K147: 0.04293 | L147: 0.04293 | M147: 0.0018 | O147: 1.16 | P147: 0.39934 | Q147: 0.37039 | R147: -0.02895 | S147: 0.02895 | T147: 0.0008 | V147: 1.16 | W147: 0.39934 | X147: -0.22356 | Y147: -0.62290 | Z147: 0.62290 | AA147: 0.3880 | AC147: 1.16 | AD147: 0.39934 | AE147: 1.04763 | AF147: 0.64829 | AG147: 0.64829 | AH147: 0.4203 | AJ147: 1.16 | AK147: 0.39934 | AL147: 1.30101 | AM147: 0.90168 | AN147: 0.90168 | AO147: 0.8130
A148: 1.175 | B148: 0.38554 | C148: 1.00000 | D148: 0.61446 | E148: 0.61446 | F148: 0.3776 | H148: 1.175 | I148: 0.38554 | J148: 0.42836 | K148: 0.04282 | L148: 0.04282 | M148: 0.0018 | O148: 1.175 | P148: 0.38554 | Q148: 0.35654 | R148: -0.02900 | S148: 0.02900 | T148: 0.0008 | V148: 1.175 | W148: 0.38554 | X148: -0.25513 | Y148: -0.64067 | Z148: 0.64067 | AA148: 0.4105 | AC148: 1.175 | AD148: 0.38554 | AE148: 1.05447 | AF148: 0.66893 | AG148: 0.66893 | AH148: 0.4475 | AJ148: 1.175 | AK148: 0.38554 | AL148: 1.32816 | AM148: 0.94262 | AN148: 0.94262 | AO148: 0.8885
A149: 1.19 | B149: 0.37166 | C149: 1.00000 | D149: 0.62834 | E149: 0.62834 | F149: 0.3948 | H149: 1.19 | I149: 0.37166 | J149: 0.41428 | K149: 0.04262 | L149: 0.04262 | M149: 0.0018 | O149: 1.19 | P149: 0.37166 | Q149: 0.34261 | R149: -0.02905 | S149: 0.02905 | T149: 0.0008 | V149: 1.19 | W149: 0.37166 | X149: -0.28717 | Y149: -0.65883 | Z149: 0.65883 | AA149: 0.4341 | AC149: 1.19 | AD149: 0.37166 | AE149: 1.06106 | AF149: 0.68940 | AG149: 0.68940 | AH149: 0.4753 | AJ149: 1.19 | AK149: 0.37166 | AL149: 1.35640 | AM149: 0.98474 | AN149: 0.98474 | AO149: 0.9697
A150: 1.205 | B150: 0.35769 | C150: 1.00000 | D150: 0.64231 | E150: 0.64231 | F150: 0.4126 | H150: 1.205 | I150: 0.35769 | J150: 0.40003 | K150: 0.04234 | L150: 0.04234 | M150: 0.0018 | O150: 1.205 | P150: 0.35769 | Q150: 0.32860 | R150: -0.02909 | S150: 0.02909 | T150: 0.0008 | V150: 1.205 | W150: 0.35769 | X150: -0.31969 | Y150: -0.67739 | Z150: 0.67739 | AA150: 0.4589 | AC150: 1.205 | AD150: 0.35769 | AE150: 1.06741 | AF150: 0.70971 | AG150: 0.70971 | AH150: 0.5037 | AJ150: 1.205 | AK150: 0.35769 | AL150: 1.38579 | AM150: 1.02810 | AN150: 1.02810 | AO150: 1.0570
A151: 1.22 | B151: 0.34365 | C151: 1.00000 | D151: 0.65635 | E151: 0.65635 | F151: 0.4308 | H151: 1.22 | I151: 0.34365 | J151: 0.38561 | K151: 0.04196 | L151: 0.04196 | M151: 0.0018 | O151: 1.22 | P151: 0.34365 | Q151: 0.31452 | R151: -0.02913 | S151: 0.02913 | T151: 0.0008 | V151: 1.22 | W151: 0.34365 | X151: -0.35269 | Y151: -0.69634 | Z151: 0.69634 | AA151: 0.4849 | AC151: 1.22 | AD151: 0.34365 | AE151: 1.07350 | AF151: 0.72986 | AG151: 0.72986 | AH151: 0.5327 | AJ151: 1.22 | AK151: 0.34365 | AL151: 1.41642 | AM151: 1.07278 | AN151: 1.07278 | AO151: 1.1508
A152: 1.235 | B152: 0.32952 | C152: 1.00000 | D152: 0.67048 | E152: 0.67048 | F152: 0.4495 | H152: 1.235 | I152: 0.32952 | J152: 0.37101 | K152: 0.04149 | L152: 0.04149 | M152: 0.0017 | O152: 1.235 | P152: 0.32952 | Q152: 0.30036 | R152: -0.02916 | S152: 0.02916 | T152: 0.0009 | V152: 1.235 | W152: 0.32952 | X152: -0.38617 | Y152: -0.71570 | Z152: 0.71570 | AA152: 0.5122 | AC152: 1.235 | AD152: 0.32952 | AE152: 1.07935 | AF152: 0.74983 | AG152: 0.74983 | AH152: 0.5622 | AJ152: 1.235 | AK152: 0.32952 | AL152: 1.44836 | AM152: 1.11884 | AN152: 1.11884 | AO152: 1.2518
A153: 1.25 | B153: 0.31532 | C153: 1.00000 | D153: 0.68468 | E153: 0.68468 | F153: 0.4688 | H153: 1.25 | I153: 0.31532 | J153: 0.35625 | K153: 0.04093 | L153: 0.04093 | M153: 0.0017 | O153: 1.25 | P153: 0.31532 | Q153: 0.28613 | R153: -0.02919 | S153: 0.02919 | T153: 0.0009 | V153: 1.25 | W153: 0.31532 | X153: -0.42015 | Y153: -0.73547 | Z153: 0.73547 | AA153: 0.5409 | AC153: 1.25 | AD153: 0.31532 | AE153: 1.08496 | AF153: 0.76964 | AG153: 0.76964 | AH153: 0.5923 | AJ153: 1.25 | AK153: 0.31532 | AL153: 1.48169 | AM153: 1.16637 | AN153: 1.16637 | AO153: 1.3604
A154: 1.265 | B154: 0.30105 | C154: 1.00000 | D154: 0.69895 | E154: 0.69895 | F154: 0.4885 | H154: 1.265 | I154: 0.30105 | J154: 0.34131 | K154: 0.04026 | L154: 0.04026 | M154: 0.0016 | O154: 1.265 | P154: 0.30105 | Q154: 0.27184 | R154: -0.02922 | S154: 0.02922 | T154: 0.0009 | V154: 1.265 | W154: 0.30105 | X154: -0.45461 | Y154: -0.75567 | Z154: 0.75567 | AA154: 0.5710 | AC154: 1.265 | AD154: 0.30105 | AE154: 1.09033 | AF154: 0.78928 | AG154: 0.78928 | AH154: 0.6230 | AJ154: 1.265 | AK154: 0.30105 | AL154: 1.51649 | AM154: 1.21544 | AN154: 1.21544 | AO154: 1.4773
A155: 1.28 | B155: 0.28672 | C155: 1.00000 | D155: 0.71328 | E155: 0.71328 | F155: 0.5088 | H155: 1.28 | I155: 0.28672 | J155: 0.32621 | K155: 0.03949 | L155: 0.03949 | M155: 0.0016 | O155: 1.28 | P155: 0.28672 | Q155: 0.25748 | R155: -0.02924 | S155: 0.02924 | T155: 0.0009 | V155: 1.28 | W155: 0.28672 | X155: -0.48958 | Y155: -0.77629 | Z155: 0.77629 | AA155: 0.6026 | AC155: 1.28 | AD155: 0.28672 | AE155: 1.09546 | AF155: 0.80874 | AG155: 0.80874 | AH155: 0.6541 | AJ155: 1.28 | AK155: 0.28672 | AL155: 1.55286 | AM155: 1.26614 | AN155: 1.26614 | AO155: 1.6031
A156: 1.295 | B156: 0.27231 | C156: 1.00000 | D156: 0.72769 | E156: 0.72769 | F156: 0.5295 | H156: 1.295 | I156: 0.27231 | J156: 0.31093 | K156: 0.03862 | L156: 0.03862 | M156: 0.0015 | O156: 1.295 | P156: 0.27231 | Q156: 0.24305 | R156: -0.02926 | S156: 0.02926 | T156: 0.0009 | V156: 1.295 | W156: 0.27231 | X156: -0.52505 | Y156: -0.79736 | Z156: 0.79736 | AA156: 0.6358 | AC156: 1.295 | AD156: 0.27231 | AE156: 1.10036 | AF156: 0.82804 | AG156: 0.82804 | AH156: 0.6857 | AJ156: 1.295 | AK156: 0.27231 | AL156: 1.59087 | AM156: 1.31856 | AN156: 1.31856 | AO156: 1.7386
A157: 1.31 | B157: 0.25785 | C157: 1.00000 | D157: 0.74215 | E157: 0.74215 | F157: 0.5508 | H157: 1.31 | I157: 0.25785 | J157: 0.29548 | K157: 0.03763 | L157: 0.03763 | M157: 0.0014 | O157: 1.31 | P157: 0.25785 | Q157: 0.22857 | R157: -0.02928 | S157: 0.02928 | T157: 0.0009 | V157: 1.31 | W157: 0.25785 | X157: -0.56103 | Y157: -0.81888 | Z157: 0.81888 | AA157: 0.6706 | AC157: 1.31 | AD157: 0.25785 | AE157: 1.10502 | AF157: 0.84717 | AG157: 0.84717 | AH157: 0.7177 | AJ157: 1.31 | AK157: 0.25785 | AL157: 1.63063 | AM157: 1.37278 | AN157: 1.37278 | AO157: 1.8845
A158: 1.325 | B158: 0.24333 | C158: 1.00000 | D158: 0.75667 | E158: 0.75667 | F158: 0.5726 | H158: 1.325 | I158: 0.24333 | J158: 0.27986 | K158: 0.03653 | L158: 0.03653 | M158: 0.0013 | O158: 1.325 | P158: 0.24333 | Q158: 0.21403 | R158: -0.02930 | S158: 0.02930 | T158: 0.0009 | V158: 1.325 | W158: 0.24333 | X158: -0.59753 | Y158: -0.84085 | Z158: 0.84085 | AA158: 0.7070 | AC158: 1.325 | AD158: 0.24333 | AE158: 1.10946 | AF158: 0.86614 | AG158: 0.86614 | AH158: 0.7502 | AJ158: 1.325 | AK158: 0.24333 | AL158: 1.67223 | AM158: 1.42890 | AN158: 1.42890 | AO158: 2.0418
A159: 1.34 | B159: 0.22875 | C159: 1.00000 | D159: 0.77125 | E159: 0.77125 | F159: 0.5948 | H159: 1.34 | I159: 0.22875 | J159: 0.26407 | K159: 0.03532 | L159: 0.03532 | M159: 0.0012 | O159: 1.34 | P159: 0.22875 | Q159: 0.19943 | R159: -0.02932 | S159: 0.02932 | T159: 0.0009 | V159: 1.34 | W159: 0.22875 | X159: -0.63454 | Y159: -0.86329 | Z159: 0.86329 | AA159: 0.7453 | AC159: 1.34 | AD159: 0.22875 | AE159: 1.11368 | AF159: 0.88493 | AG159: 0.88493 | AH159: 0.7831 | AJ159: 1.34 | AK159: 0.22875 | AL159: 1.71577 | AM159: 1.48702 | AN159: 1.48702 | AO159: 2.2112
A160: 1.355 | B160: 0.21413 | C160: 1.00000 | D160: 0.78587 | E160: 0.78587 | F160: 0.6176 | H160: 1.355 | I160: 0.21413 | J160: 0.24811 | K160: 0.03399 | L160: 0.03399 | M160: 0.0012 | O160: 1.355 | P160: 0.21413 | Q160: 0.18478 | R160: -0.02934 | S160: 0.02934 | T160: 0.0009 | V160: 1.355 | W160: 0.21413 | X160: -0.67208 | Y160: -0.88621 | Z160: 0.88621 | AA160: 0.7854 | AC160: 1.355 | AD160: 0.21413 | AE160: 1.11769 | AF160: 0.90356 | AG160: 0.90356 | AH160: 0.8164 | AJ160: 1.355 | AK160: 0.21413 | AL160: 1.76137 | AM160: 1.54724 | AN160: 1.54724 | AO160: 2.3940
A161: 1.37 | B161: 0.19945 | C161: 1.00000 | D161: 0.80055 | E161: 0.80055 | F161: 0.6409 | H161: 1.37 | I161: 0.19945 | J161: 0.23198 | K161: 0.03253 | L161: 0.03253 | M161: 0.0011 | O161: 1.37 | P161: 0.19945 | Q161: 0.17008 | R161: -0.02937 | S161: 0.02937 | T161: 0.0009 | V161: 1.37 | W161: 0.19945 | X161: -0.71016 | Y161: -0.90961 | Z161: 0.90961 | AA161: 0.8274 | AC161: 1.37 | AD161: 0.19945 | AE161: 1.12148 | AF161: 0.92203 | AG161: 0.92203 | AH161: 0.8501 | AJ161: 1.37 | AK161: 0.19945 | AL161: 1.80911 | AM161: 1.60966 | AN161: 1.60966 | AO161: 2.5910
A162: 1.385 | B162: 0.18473 | C162: 1.00000 | D162: 0.81527 | E162: 0.81527 | F162: 0.6647 | H162: 1.385 | I162: 0.18473 | J162: 0.21567 | K162: 0.03095 | L162: 0.03095 | M162: 0.0010 | O162: 1.385 | P162: 0.18473 | Q162: 0.15533 | R162: -0.02940 | S162: 0.02940 | T162: 0.0009 | V162: 1.385 | W162: 0.18473 | X162: -0.74877 | Y162: -0.93350 | Z162: 0.93350 | AA162: 0.8714 | AC162: 1.385 | AD162: 0.18473 | AE162: 1.12507 | AF162: 0.94034 | AG162: 0.94034 | AH162: 0.8842 | AJ162: 1.385 | AK162: 0.18473 | AL162: 1.85913 | AM162: 1.67440 | AN162: 1.67440 | AO162: 2.8036
A163: 1.4 | B163: 0.16997 | C163: 1.00000 | D163: 0.83003 | E163: 0.83003 | F163: 0.6890 | H163: 1.4 | I163: 0.16997 | J163: 0.19920 | K163: 0.02923 | L163: 0.02923 | M163: 0.0009 | O163: 1.4 | P163: 0.16997 | Q163: 0.14054 | R163: -0.02943 | S163: 0.02943 | T163: 0.0009 | V163: 1.4 | W163: 0.16997 | X163: -0.78792 | Y163: -0.95789 | Z163: 0.95789 | AA163: 0.9175 | AC163: 1.4 | AD163: 0.16997 | AE163: 1.12845 | AF163: 0.95849 | AG163: 0.95849 | AH163: 0.9187 | AJ163: 1.4 | AK163: 0.16997 | AL163: 1.91153 | AM163: 1.74156 | AN163: 1.74156 | AO163: 3.0330
A164: =A163+(b-a)/200 -> 1.415 | B164: 0.15517 | C164: 1.00000 | D164: 0.84483 | E164: 0.84483 | F164: 0.7137 | H164: 1.415 | I164: 0.15517 | J164: 0.18255 | K164: 0.02739 | L164: 0.02739 | M164: 0.0008 | O164: =O163+(bb-aa)/200 -> 1.415 | P164: 0.15517 | Q164: 0.12570 | R164: -0.02946 | S164: 0.02946 | T164: 0.0009 | V164: =V163+(bbb-aaa)/200 -> 1.415 | W164: 0.15517 | X164: -0.82762 | Y164: -0.98279 | Z164: 0.98279 | AA164: 0.9659 | AC164: =AC163+(bbbb-aaaa)/200 -> 1.415 | AD164: 0.15517 | AE164: 1.13165 | AF164: 0.97648 | AG164: 0.97648 | AH164: 0.9535 | AJ164: =AJ163+(bbbbb-aaaaa)/200 -> 1.415 | AK164: 0.15517 | AL164: 1.96643 | AM164: 1.81126 | AN164: 1.81126 | AO164: 3.2807
A165: 1.43 | B165: 0.14033 | C165: 1.00000 | D165: 0.85967 | E165: 0.85967 | F165: 0.7390 | H165: 1.43 | I165: 0.14033 | J165: 0.16574 | K165: 0.02541 | L165: 0.02541 | M165: 0.0006 | O165: 1.43 | P165: 0.14033 | Q165: 0.11083 | R165: -0.02951 | S165: 0.02951 | T165: 0.0009 | V165: 1.43 | W165: 0.14033 | X165: -0.86788 | Y165: -1.00821 | Z165: 1.00821 | AA165: 1.0165 | AC165: 1.43 | AD165: 0.14033 | AE165: 1.13466 | AF165: 0.99433 | AG165: 0.99433 | AH165: 0.9887 | AJ165: 1.43 | AK165: 0.14033 | AL165: 2.02396 | AM165: 1.88363 | AN165: 1.88363 | AO165: 3.5481
A166: 1.445 | B166: 0.12546 | C166: 1.00000 | D166: 0.87454 | E166: 0.87454 | F166: 0.7648 | H166: 1.445 | I166: 0.12546 | J166: 0.14875 | K166: 0.02329 | L166: 0.02329 | M166: 0.0005 | O166: 1.445 | P166: 0.12546 | Q166: 0.09591 | R166: -0.02955 | S166: 0.02955 | T166: 0.0009 | V166: 1.445 | W166: 0.12546 | X166: -0.90870 | Y166: -1.03417 | Z166: 1.03417 | AA166: 1.0695 | AC166: 1.445 | AD166: 0.12546 | AE166: 1.13749 | AF166: 1.01202 | AG166: 1.01202 | AH166: 1.0242 | AJ166: 1.445 | AK166: 0.12546 | AL166: 2.08425 | AM166: 1.95878 | AN166: 1.95878 | AO166: 3.8368
A167: 1.46 | B167: 0.11057 | C167: 1.00000 | D167: 0.88943 | E167: 0.88943 | F167: 0.7911 | H167: 1.46 | I167: 0.11057 | J167: 0.13159 | K167: 0.02102 | L167: 0.02102 | M167: 0.0004 | O167: 1.46 | P167: 0.11057 | Q167: 0.08096 | R167: -0.02961 | S167: 0.02961 | T167: 0.0009 | V167: 1.46 | W167: 0.11057 | X167: -0.95009 | Y167: -1.06066 | Z167: 1.06066 | AA167: 1.1250 | AC167: 1.46 | AD167: 0.11057 | AE167: 1.14015 | AF167: 1.02958 | AG167: 1.02958 | AH167: 1.0600 | AJ167: 1.46 | AK167: 0.11057 | AL167: 2.14743 | AM167: 2.03686 | AN167: 2.03686 | AO167: 4.1488
A168: 1.475 | B168: 0.09565 | C168: 1.00000 | D168: 0.90435 | E168: 0.90435 | F168: 0.8178 | H168: 1.475 | I168: 0.09565 | J168: 0.11426 | K168: 0.01861 | L168: 0.01861 | M168: 0.0003 | O168: 1.475 | P168: 0.09565 | Q168: 0.06598 | R168: -0.02967 | S168: 0.02967 | T168: 0.0009 | V168: 1.475 | W168: 0.09565 | X168: -0.99205 | Y168: -1.08770 | Z168: 1.08770 | AA168: 1.1831 | AC168: 1.475 | AD168: 0.09565 | AE168: 1.14264 | AF168: 1.04699 | AG168: 1.04699 | AH168: 1.0962 | AJ168: 1.475 | AK168: 0.09565 | AL168: 2.21363 | AM168: 2.11798 | AN168: 2.11798 | AO168: 4.4859
A169: 1.49 | B169: 0.08071 | C169: 1.00000 | D169: 0.91929 | E169: 0.91929 | F169: 0.8451 | H169: 1.49 | I169: 0.08071 | J169: 0.09676 | K169: 0.01605 | L169: 0.01605 | M169: 0.0003 | O169: 1.49 | P169: 0.08071 | Q169: 0.05096 | R169: -0.02975 | S169: 0.02975 | T169: 0.0009 | V169: 1.49 | W169: 0.08071 | X169: -1.03459 | Y169: -1.11530 | Z169: 1.11530 | AA169: 1.2439 | AC169: 1.49 | AD169: 0.08071 | AE169: 1.14499 | AF169: 1.06428 | AG169: 1.06428 | AH169: 1.1327 | AJ169: 1.49 | AK169: 0.08071 | AL169: 2.28301 | AM169: 2.20230 | AN169: 2.20230 | AO169: 4.8501
A170: 1.505 | B170: 0.06575 | C170: 1.00000 | D170: 0.93425 | E170: 0.93425 | F170: 0.8728 | H170: 1.505 | I170: 0.06575 | J170: 0.07909 | K170: 0.01334 | L170: 0.01334 | M170: 0.0002 | O170: 1.505 | P170: 0.06575 | Q170: 0.03592 | R170: -0.02983 | S170: 0.02983 | T170: 0.0009 | V170: 1.505 | W170: 0.06575 | X170: -1.07772 | Y170: -1.14347 | Z170: 1.14347 | AA170: 1.3075 | AC170: 1.505 | AD170: 0.06575 | AE170: 1.14719 | AF170: 1.08144 | AG170: 1.08144 | AH170: 1.1695 | AJ170: 1.505 | AK170: 0.06575 | AL170: 2.35570 | AM170: 2.28995 | AN170: 2.28995 | AO170: 5.2439
A171: 1.52 | B171: 0.05077 | C171: 1.00000 | D171: 0.94923 | E171: 0.94923 | F171: 0.9010 | H171: 1.52 | I171: 0.05077 | J171: 0.06125 | K171: 0.01047 | L171: 0.01047 | M171: 0.0001 | O171: 1.52 | P171: 0.05077 | Q171: 0.02085 | R171: -0.02992 | S171: 0.02992 | T171: 0.0009 | V171: 1.52 | W171: 0.05077 | X171: -1.12145 | Y171: -1.17222 | Z171: 1.17222 | AA171: 1.3741 | AC171: 1.52 | AD171: 0.05077 | AE171: 1.14925 | AF171: 1.09848 | AG171: 1.09848 | AH171: 1.2066 | AJ171: 1.52 | AK171: 0.05077 | AL171: 2.43186 | AM171: 2.38109 | AN171: 2.38109 | AO171: 5.6696
A172: 1.535 | B172: 0.03579 | C172: 1.00000 | D172: 0.96421 | E172: 0.96421 | F172: 0.9297 | H172: 1.535 | I172: 0.03579 | J172: 0.04323 | K172: 0.00745 | L172: 0.00745 | M172: 0.0001 | O172: 1.535 | P172: 0.03579 | Q172: 0.00576 | R172: -0.03003 | S172: 0.03003 | T172: 0.0009 | V172: 1.535 | W172: 0.03579 | X172: -1.16577 | Y172: -1.20156 | Z172: 1.20156 | AA172: 1.4437 | AC172: 1.535 | AD172: 0.03579 | AE172: 1.15119 | AF172: 1.11540 | AG172: 1.11540 | AH172: 1.2441 | AJ172: 1.535 | AK172: 0.03579 | AL172: 2.51164 | AM172: 2.47585 | AN172: 2.47585 | AO172: 6.1298
A173: 1.55 | B173: 0.02079 | C173: 1.00000 | D173: 0.97921 | E173: 0.97921 | F173: 0.9588 | H173: 1.55 | I173: 0.02079 | J173: 0.02505 | K173: 0.00426 | L173: 0.00426 | M173: 0.0000 | O173: 1.55 | P173: 0.02079 | Q173: -0.00935 | R173: -0.03015 | S173: 0.03015 | T173: 0.0009 | V173: 1.55 | W173: 0.02079 | X173: -1.21070 | Y173: -1.23150 | Z173: 1.23150 | AA173: 1.5166 | AC173: 1.55 | AD173: 0.02079 | AE173: 1.15301 | AF173: 1.13222 | AG173: 1.13222 | AH173: 1.2819 | AJ173: 1.55 | AK173: 0.02079 | AL173: 2.59521 | AM173: 2.57441 | AN173: 2.57441 | AO173: 6.6276
A174: 1.565 | B174: 0.00580 | C174: 1.00000 | D174: 0.99420 | E174: 0.99420 | F174: 0.9884 | H174: 1.565 | I174: 0.00580 | J174: 0.00669 | K174: 0.00090 | L174: 0.00090 | M174: 0.0000 | O174: 1.565 | P174: 0.00580 | Q174: -0.02448 | R174: -0.03028 | S174: 0.03028 | T174: 0.0009 | V174: 1.565 | W174: 0.00580 | X174: -1.25625 | Y174: -1.26205 | Z174: 1.26205 | AA174: 1.5928 | AC174: 1.565 | AD174: 0.00580 | AE174: 1.15473 | AF174: 1.14894 | AG174: 1.14894 | AH174: 1.3201 | AJ174: 1.565 | AK174: 0.00580 | AL174: 2.68272 | AM174: 2.67692 | AN174: 2.67692 | AO174: 7.1659
A175: 1.58 | B175: -0.00920 | C175: 1.00000 | D175: 1.00920 | E175: 1.00920 | F175: 1.0185 | H175: 1.58 | I175: -0.00920 | J175: -0.01183 | K175: -0.00263 | L175: 0.00263 | M175: 0.0000 | O175: 1.58 | P175: -0.00920 | Q175: -0.03963 | R175: -0.03042 | S175: 0.03042 | T175: 0.0009 | V175: 1.58 | W175: -0.00920 | X175: -1.30242 | Y175: -1.29322 | Z175: 1.29322 | AA175: 1.6724 | AC175: 1.58 | AD175: -0.00920 | AE175: 1.15636 | AF175: 1.16556 | AG175: 1.16556 | AH175: 1.3585 | AJ175: 1.58 | AK175: -0.00920 | AL175: 2.77435 | AM175: 2.78355 | AN175: 2.78355 | AO175: 7.7482
A176: 1.595 | B176: -0.02420 | C176: 1.00000 | D176: 1.02420 | E176: 1.02420 | F176: 1.0490 | H176: 1.595 | I176: -0.02420 | J176: -0.03053 | K176: -0.00633 | L176: 0.00633 | M176: 0.0000 | O176: 1.595 | P176: -0.02420 | Q176: -0.05478 | R176: -0.03058 | S176: 0.03058 | T176: 0.0009 | V176: 1.595 | W176: -0.02420 | X176: -1.34922 | Y176: -1.32502 | Z176: 1.32502 | AA176: 1.7557 | AC176: 1.595 | AD176: -0.02420 | AE176: 1.15791 | AF176: 1.18211 | AG176: 1.18211 | AH176: 1.3974 | AJ176: 1.595 | AK176: -0.02420 | AL176: 2.87028 | AM176: 2.89448 | AN176: 2.89448 | AO176: 8.3780
A177: 1.61 | B177: -0.03919 | C177: 1.00000 | D177: 1.03919 | E177: 1.03919 | F177: 1.0799 | H177: 1.61 | I177: -0.03919 | J177: -0.04940 | K177: -0.01020 | L177: 0.01020 | M177: 0.0001 | O177: 1.61 | P177: -0.03919 | Q177: -0.06995 | R177: -0.03076 | S177: 0.03076 | T177: 0.0009 | V177: 1.61 | W177: -0.03919 | X177: -1.39665 | Y177: -1.35746 | Z177: 1.35746 | AA177: 1.8427 | AC177: 1.61 | AD177: -0.03919 | AE177: 1.15939 | AF177: 1.19858 | AG177: 1.19858 | AH177: 1.4366 | AJ177: 1.61 | AK177: -0.03919 | AL177: 2.97068 | AM177: 3.00988 | AN177: 3.00988 | AO177: 9.0594
A178: 1.625 | B178: -0.05418 | C178: 1.00000 | D178: 1.05418 | E178: 1.05418 | F178: 1.1113 | H178: 1.625 | I178: -0.05418 | J178: -0.06844 | K178: -0.01426 | L178: 0.01426 | M178: 0.0002 | O178: 1.625 | P178: -0.05418 | Q178: -0.08513 | R178: -0.03095 | S178: 0.03095 | T178: 0.0010 | V178: 1.625 | W178: -0.05418 | X178: -1.44473 | Y178: -1.39056 | Z178: 1.39056 | AA178: 1.9336 | AC178: 1.625 | AD178: -0.05418 | AE178: 1.16082 | AF178: 1.21499 | AG178: 1.21499 | AH178: 1.4762 | AJ178: 1.625 | AK178: -0.05418 | AL178: 3.07575 | AM178: 3.12993 | AN178: 3.12993 | AO178: 9.7964
A179: 1.64 | B179: -0.06915 | C179: 1.00000 | D179: 1.06915 | E179: 1.06915 | F179: 1.1431 | H179: 1.64 | I179: -0.06915 | J179: -0.08765 | K179: -0.01850 | L179: 0.01850 | M179: 0.0003 | O179: 1.64 | P179: -0.06915 | Q179: -0.10032 | R179: -0.03117 | S179: 0.03117 | T179: 0.0010 | V179: 1.64 | W179: -0.06915 | X179: -1.49346 | Y179: -1.42432 | Z179: 1.42432 | AA179: 2.0287 | AC179: 1.64 | AD179: -0.06915 | AE179: 1.16220 | AF179: 1.23135 | AG179: 1.23135 | AH179: 1.5162 | AJ179: 1.64 | AK179: -0.06915 | AL179: 3.18567 | AM179: 3.25482 | AN179: 3.25482 | AO179: 10.5939
A180: 1.655 | B180: -0.08410 | C180: 1.00000 | D180: 1.08410 | E180: 1.08410 | F180: 1.1753 | H180: 1.655 | I180: -0.08410 | J180: -0.10703 | K180: -0.02293 | L180: 0.02293 | M180: 0.0005 | O180: 1.655 | P180: -0.08410 | Q180: -0.11550 | R180: -0.03140 | S180: 0.03140 | T180: 0.0010 | V180: 1.655 | W180: -0.08410 | X180: -1.54285 | Y180: -1.45875 | Z180: 1.45875 | AA180: 2.1279 | AC180: 1.655 | AD180: -0.08410 | AE180: 1.16356 | AF180: 1.24767 | AG180: 1.24767 | AH180: 1.5567 | AJ180: 1.655 | AK180: -0.08410 | AL180: 3.30064 | AM180: 3.38475 | AN180: 3.38475 | AO180: 11.4565
A181: 1.67 | B181: -0.09904 | C181: 1.00000 | D181: 1.09904 | E181: 1.09904 | F181: 1.2079 | H181: 1.67 | I181: -0.09904 | J181: -0.12658 | K181: -0.02754 | L181: 0.02754 | M181: 0.0008 | O181: 1.67 | P181: -0.09904 | Q181: -0.13069 | R181: -0.03165 | S181: 0.03165 | T181: 0.0010 | V181: 1.67 | W181: -0.09904 | X181: -1.59291 | Y181: -1.49387 | Z181: 1.49387 | AA181: 2.2316 | AC181: 1.67 | AD181: -0.09904 | AE181: 1.16491 | AF181: 1.26395 | AG181: 1.26395 | AH181: 1.5976 | AJ181: 1.67 | AK181: -0.09904 | AL181: 3.42087 | AM181: 3.51991 | AN181: 3.51991 | AO181: 12.3898
A182: 1.685 | B182: -0.11396 | C182: 1.00000 | D182: 1.11396 | E182: 1.11396 | F182: 1.2409 | H182: 1.685 | I182: -0.11396 | J182: -0.14631 | K182: -0.03235 | L182: 0.03235 | M182: 0.0010 | O182: 1.685 | P182: -0.11396 | Q182: -0.14588 | R182: -0.03192 | S182: 0.03192 | T182: 0.0010 | V182: 1.685 | W182: -0.11396 | X182: -1.64364 | Y182: -1.52969 | Z182: 1.52969 | AA182: 2.3399 | AC182: 1.685 | AD182: -0.11396 | AE182: 1.16626 | AF182: 1.28021 | AG182: 1.28021 | AH182: 1.6389 | AJ182: 1.685 | AK182: -0.11396 | AL182: 3.54656 | AM182: 3.66052 | AN182: 3.66052 | AO182: 13.3994
A183: 1.7 | B183: -0.12884 | C183: 1.00000 | D183: 1.12884 | E183: 1.12884 | F183: 1.2743 | H183: 1.7 | I183: -0.12884 | J183: -0.16620 | K183: -0.03736 | L183: 0.03736 | M183: 0.0014 | O183: 1.7 | P183: -0.12884 | Q183: -0.16106 | R183: -0.03221 | S183: 0.03221 | T183: 0.0010 | V183: 1.7 | W183: -0.12884 | X183: -1.69506 | Y183: -1.56621 | Z183: 1.56621 | AA183: 2.4530 | AC183: 1.7 | AD183: -0.12884 | AE183: 1.16762 | AF183: 1.29647 | AG183: 1.29647 | AH183: 1.6808 | AJ183: 1.7 | AK183: -0.12884 | AL183: 3.67793 | AM183: 3.80678 | AN183: 3.80678 | AO183: 14.4915
A184: 1.715 | B184: -0.14370 | C184: 1.00000 | D184: 1.14370 | E184: 1.14370 | F184: 1.3081 | H184: 1.715 | I184: -0.14370 | J184: -0.18627 | K184: -0.04256 | L184: 0.04256 | M184: 0.0018 | O184: 1.715 | P184: -0.14370 | Q184: -0.17623 | R184: -0.03253 | S184: 0.03253 | T184: 0.0011 | V184: 1.715 | W184: -0.14370 | X184: -1.74716 | Y184: -1.60346 | Z184: 1.60346 | AA184: 2.5711 | AC184: 1.715 | AD184: -0.14370 | AE184: 1.16903 | AF184: 1.31273 | AG184: 1.31273 | AH184: 1.7233 | AJ184: 1.715 | AK184: -0.14370 | AL184: 3.81520 | AM184: 3.95890 | AN184: 3.95890 | AO184: 15.6729
A185: 1.73 | B185: -0.15853 | C185: 1.00000 | D185: 1.15853 | E185: 1.15853 | F185: 1.3422 | H185: 1.73 | I185: -0.15853 | J185: -0.20650 | K185: -0.04797 | L185: 0.04797 | M185: 0.0023 | O185: 1.73 | P185: -0.15853 | Q185: -0.19140 | R185: -0.03287 | S185: 0.03287 | T185: 0.0011 | V185: 1.73 | W185: -0.15853 | X185: -1.79997 | Y185: -1.64143 | Z185: 1.64143 | AA185: 2.6943 | AC185: 1.73 | AD185: -0.15853 | AE185: 1.17048 | AF185: 1.32901 | AG185: 1.32901 | AH185: 1.7663 | AJ185: 1.73 | AK185: -0.15853 | AL185: 3.95859 | AM185: 4.11712 | AN185: 4.11712 | AO185: 16.9507
A186: 1.745 | B186: -0.17332 | C186: 1.00000 | D186: 1.17332 | E186: 1.17332 | F186: 1.3767 | H186: 1.745 | I186: -0.17332 | J186: -0.22691 | K186: -0.05359 | L186: 0.05359 | M186: 0.0029 | O186: 1.745 | P186: -0.17332 | Q186: -0.20655 | R186: -0.03323 | S186: 0.03323 | T186: 0.0011 | V186: 1.745 | W186: -0.17332 | X186: -1.85348 | Y186: -1.68015 | Z186: 1.68015 | AA186: 2.8229 | AC186: 1.745 | AD186: -0.17332 | AE186: 1.17200 | AF186: 1.34533 | AG186: 1.34533 | AH186: 1.8099 | AJ186: 1.745 | AK186: -0.17332 | AL186: 4.10834 | AM186: 4.28166 | AN186: 4.28166 | AO186: 18.3326
A187: 1.76 | B187: -0.18808 | C187: 1.00000 | D187: 1.18808 | E187: 1.18808 | F187: 1.4115 | H187: 1.76 | I187: -0.18808 | J187: -0.24749 | K187: -0.05941 | L187: 0.05941 | M187: 0.0035 | O187: 1.76 | P187: -0.18808 | Q187: -0.22169 | R187: -0.03362 | S187: 0.03362 | T187: 0.0011 | V187: 1.76 | W187: -0.18808 | X187: -1.90771 | Y187: -1.71963 | Z187: 1.71963 | AA187: 2.9571 | AC187: 1.76 | AD187: -0.18808 | AE187: 1.17361 | AF187: 1.36169 | AG187: 1.36169 | AH187: 1.8542 | AJ187: 1.76 | AK187: -0.18808 | AL187: 4.26468 | AM187: 4.45276 | AN187: 4.45276 | AO187: 19.8271
A188: 1.775 | B188: -0.20279 | C188: 1.00000 | D188: 1.20279 | E188: 1.20279 | F188: 1.4467 | H188: 1.775 | I188: -0.20279 | J188: -0.26824 | K188: -0.06545 | L188: 0.06545 | M188: 0.0043 | O188: 1.775 | P188: -0.20279 | Q188: -0.23682 | R188: -0.03403 | S188: 0.03403 | T188: 0.0012 | V188: 1.775 | W188: -0.20279 | X188: -1.96266 | Y188: -1.75987 | Z188: 1.75987 | AA188: 3.0971 | AC188: 1.775 | AD188: -0.20279 | AE188: 1.17532 | AF188: 1.37811 | AG188: 1.37811 | AH188: 1.8992 | AJ188: 1.775 | AK188: -0.20279 | AL188: 4.42787 | AM188: 4.63066 | AN188: 4.63066 | AO188: 21.4430
A189: 1.79 | B189: -0.21745 | C189: 1.00000 | D189: 1.21745 | E189: 1.21745 | F189: 1.4822 | H189: 1.79 | I189: -0.21745 | J189: -0.28916 | K189: -0.07171 | L189: 0.07171 | M189: 0.0051 | O189: 1.79 | P189: -0.21745 | Q189: -0.25192 | R189: -0.03447 | S189: 0.03447 | T189: 0.0012 | V189: 1.79 | W189: -0.21745 | X189: -2.01834 | Y189: -1.80089 | Z189: 1.80089 | AA189: 3.2432 | AC189: 1.79 | AD189: -0.21745 | AE189: 1.17716 | AF189: 1.39461 | AG189: 1.39461 | AH189: 1.9449 | AJ189: 1.79 | AK189: -0.21745 | AL189: 4.59815 | AM189: 4.81560 | AN189: 4.81560 | AO189: 23.1900
A190: 1.805 | B190: -0.23207 | C190: 1.00000 | D190: 1.23207 | E190: 1.23207 | F190: 1.5180 | H190: 1.805 | I190: -0.23207 | J190: -0.31025 | K190: -0.07818 | L190: 0.07818 | M190: 0.0061 | O190: 1.805 | P190: -0.23207 | Q190: -0.26701 | R190: -0.03494 | S190: 0.03494 | T190: 0.0012 | V190: 1.805 | W190: -0.23207 | X190: -2.07477 | Y190: -1.84270 | Z190: 1.84270 | AA190: 3.3956 | AC190: 1.805 | AD190: -0.23207 | AE190: 1.17914 | AF190: 1.41121 | AG190: 1.41121 | AH190: 1.9915 | AJ190: 1.805 | AK190: -0.23207 | AL190: 4.77578 | AM190: 5.00785 | AN190: 5.00785 | AO190: 25.0785
A191: 1.82 | B191: -0.24663 | C191: 1.00000 | D191: 1.24663 | E191: 1.24663 | F191: 1.5541 | H191: 1.82 | I191: -0.24663 | J191: -0.33151 | K191: -0.08488 | L191: 0.08488 | M191: 0.0072 | O191: 1.82 | P191: -0.24663 | Q191: -0.28206 | R191: -0.03543 | S191: 0.03543 | T191: 0.0013 | V191: 1.82 | W191: -0.24663 | X191: -2.13195 | Y191: -1.88532 | Z191: 1.88532 | AA191: 3.5544 | AC191: 1.82 | AD191: -0.24663 | AE191: 1.18129 | AF191: 1.42792 | AG191: 1.42792 | AH191: 2.0390 | AJ191: 1.82 | AK191: -0.24663 | AL191: 4.96102 | AM191: 5.20766 | AN191: 5.20766 | AO191: 27.1197
A192: 1.835 | B192: -0.26114 | C192: 1.00000 | D192: 1.26114 | E192: 1.26114 | F192: 1.5905 | H192: 1.835 | I192: -0.26114 | J192: -0.35295 | K192: -0.09180 | L192: 0.09180 | M192: 0.0084 | O192: 1.835 | P192: -0.26114 | Q192: -0.29710 | R192: -0.03596 | S192: 0.03596 | T192: 0.0013 | V192: 1.835 | W192: -0.26114 | X192: -2.18989 | Y192: -1.92875 | Z192: 1.92875 | AA192: 3.7201 | AC192: 1.835 | AD192: -0.26114 | AE192: 1.18362 | AF192: 1.44476 | AG192: 1.44476 | AH192: 2.0873 | AJ192: 1.835 | AK192: -0.26114 | AL192: 5.15416 | AM192: 5.41530 | AN192: 5.41530 | AO192: 29.3255
A193: 1.85 | B193: -0.27559 | C193: 1.00000 | D193: 1.27559 | E193: 1.27559 | F193: 1.6271 | H193: 1.85 | I193: -0.27559 | J193: -0.37455 | K193: -0.09896 | L193: 0.09896 | M193: 0.0098 | O193: 1.85 | P193: -0.27559 | Q193: -0.31210 | R193: -0.03651 | S193: 0.03651 | T193: 0.0013 | V193: 1.85 | W193: -0.27559 | X193: -2.24859 | Y193: -1.97300 | Z193: 1.97300 | AA193: 3.8927 | AC193: 1.85 | AD193: -0.27559 | AE193: 1.18615 | AF193: 1.46174 | AG193: 1.46174 | AH193: 2.1367 | AJ193: 1.85 | AK193: -0.27559 | AL193: 5.35546 | AM193: 5.63105 | AN193: 5.63105 | AO193: 31.7087
A194: 1.865 | B194: -0.28998 | C194: 1.00000 | D194: 1.28998 | E194: 1.28998 | F194: 1.6640 | H194: 1.865 | I194: -0.28998 | J194: -0.39633 | K194: -0.10635 | L194: 0.10635 | M194: 0.0113 | O194: 1.865 | P194: -0.28998 | Q194: -0.32707 | R194: -0.03710 | S194: 0.03710 | T194: 0.0014 | V194: 1.865 | W194: -0.28998 | X194: -2.30808 | Y194: -2.01810 | Z194: 2.01810 | AA194: 4.0727 | AC194: 1.865 | AD194: -0.28998 | AE194: 1.18891 | AF194: 1.47889 | AG194: 1.47889 | AH194: 2.1871 | AJ194: 1.865 | AK194: -0.28998 | AL194: 5.56521 | AM194: 5.85519 | AN194: 5.85519 | AO194: 34.2832
A195: 1.88 | B195: -0.30430 | C195: =aa00+bb00*A195 -> 1.00000 | D195: 1.30430 | E195: 1.30430 | F195: 1.7012 | H195: 1.88 | I195: -0.30430 | J195: =a0+b0*A195+c0*A195^2 -> -0.41827 | K195: -0.11397 | L195: 0.11397 | M195: 0.0130 | O195: 1.88 | P195: -0.30430 | Q195: =a00+b00*O195+c00*O195^2+d00*A195^3 -> -0.34201 | R195: -0.03771 | S195: 0.03771 | T195: 0.0014 | V195: 1.88 | W195: -0.30430 | X195: =a000+b000*V195+c000*V195^2+d000*O195^3+e000*O195^4 -> -2.36835 | Y195: -2.06405 | Z195: 2.06405 | AA195: 4.2603 | AC195: 1.88 | AD195: -0.30430 | AE195: =a0000+b0000*AC195+c0000*AC195^2+d0000*AC195^3+e0000*AC195^4+f0000*AC195^5 -> 1.19193 | AF195: 1.49623 | AG195: 1.49623 | AH195: 2.2387 | AJ195: 1.88 | AK195: -0.30430 | AL195: =a0000+b0000*AJ195+c0000*AJ195^2+d0000*AJ195^3+e0000*AJ195^4+f0000*AJ195^5+g00000*AJ195^6 -> 5.78370 | AM195: 6.08800 | AN195: 6.08800 | AO195: 37.0638
A196: =A195+(b-a)/200 -> 1.895 | B196: =COS(A196) -> -0.31855 | C196: 1.00000 | D196: =C196-B196 -> 1.31855 | E196: =ABS(D196) -> 1.31855 | F196: =D196^2 -> 1.7386 | H196: =H195+(b-a)/200 -> 1.895 | I196: =COS(H196) -> -0.31855 | J196: -0.44039 | K196: =J196-I196 -> -0.12184 | L196: =ABS(K196) -> 0.12184 | M196: =K196^2 -> 0.0148 | O196: =O195+(bb-aa)/200 -> 1.895 | P196: =COS(O196) -> -0.31855 | Q196: -0.35691 | R196: =Q196-P196 -> -0.03836 | S196: =ABS(R196) -> 0.03836 | T196: =R196^2 -> 0.0015 | V196: =V195+(bbb-aaa)/200 -> 1.895 | W196: =COS(V196) -> -0.31855 | X196: -2.42942 | Y196: =X196-W196 -> -2.11086 | Z196: =ABS(Y196) -> 2.11086 | AA196: =Y196^2 -> 4.4557 | AC196: =AC195+(bbbb-aaaa)/200 -> 1.895 | AD196: =COS(AC196) -> -0.31855 | AE196: 1.19522 | AF196: =AE196-AD196 -> 1.51377 | AG196: =ABS(AF196) -> 1.51377 | AH196: =AF196^2 -> 2.2915 | AJ196: =AJ195+(bbbbb-aaaaa)/200 -> 1.895 | AK196: =COS(AJ196) -> -0.31855 | AL196: 6.01124 | AM196: =AL196-AK196 -> 6.32980 | AN196: =ABS(AM196) -> 6.32980 | AO196: =AM196^2 -> 40.0663
A197: 1.91 | B197: -0.33274 | C197: 1.00000 | D197: 1.33274 | E197: 1.33274 | F197: 1.7762 | H197: 1.91 | I197: -0.33274 | J197: -0.46268 | K197: -0.12994 | L197: 0.12994 | M197: 0.0169 | O197: 1.91 | P197: -0.33274 | Q197: -0.37178 | R197: -0.03904 | S197: 0.03904 | T197: 0.0015 | V197: 1.91 | W197: -0.33274 | X197: -2.49129 | Y197: -2.15855 | Z197: 2.15855 | AA197: 4.6594 | AC197: 1.91 | AD197: -0.33274 | AE197: 1.19880 | AF197: 1.53154 | AG197: 1.53154 | AH197: 2.3456 | AJ197: 1.91 | AK197: -0.33274 | AL197: 6.24813 | AM197: 6.58087 | AN197: 6.58087 | AO197: 43.3078
A198: 1.925 | B198: -0.34684 | C198: 1.00000 | D198: 1.34684 | E198: 1.34684 | F198: 1.8140 | H198: 1.925 | I198: -0.34684 | J198: -0.48514 | K198: -0.13829 | L198: 0.13829 | M198: 0.0191 | O198: 1.925 | P198: -0.34684 | Q198: -0.38660 | R198: -0.03975 | S198: 0.03975 | T198: 0.0016 | V198: 1.925 | W198: -0.34684 | X198: -2.55398 | Y198: -2.20714 | Z198: 2.20714 | AA198: 4.8714 | AC198: 1.925 | AD198: -0.34684 | AE198: 1.20271 | AF198: 1.54956 | AG198: 1.54956 | AH198: 2.4011 | AJ198: 1.925 | AK198: -0.34684 | AL198: 6.49469 | AM198: 6.84153 | AN198: 6.84153 | AO198: 46.8065
A199: 1.94 | B199: -0.36087 | C199: 1.00000 | D199: 1.36087 | E199: 1.36087 | F199: 1.8520 | H199: 1.94 | I199: -0.36087 | J199: -0.50777 | K199: -0.14690 | L199: 0.14690 | M199: 0.0216 | O199: 1.94 | P199: -0.36087 | Q199: -0.40138 | R199: -0.04050 | S199: 0.04050 | T199: 0.0016 | V199: 1.94 | W199: -0.36087 | X199: -2.61749 | Y199: -2.25662 | Z199: 2.25662 | AA199: 5.0923 | AC199: 1.94 | AD199: -0.36087 | AE199: 1.20697 | AF199: 1.56784 | AG199: 1.56784 | AH199: 2.4581 | AJ199: 1.94 | AK199: -0.36087 | AL199: 6.75123 | AM199: 7.11210 | AN199: 7.11210 | AO199: 50.5820
A200: 1.955 | B200: -0.37482 | C200: 1.00000 | D200: 1.37482 | E200: 1.37482 | F200: 1.8901 | H200: 1.955 | I200: -0.37482 | J200: -0.53057 | K200: -0.15575 | L200: 0.15575 | M200: 0.0243 | O200: 1.955 | P200: -0.37482 | Q200: -0.41611 | R200: -0.04129 | S200: 0.04129 | T200: 0.0017 | V200: 1.955 | W200: -0.37482 | X200: -2.68184 | Y200: -2.30702 | Z200: 2.30702 | AA200: 5.3223 | AC200: 1.955 | AD200: -0.37482 | AE200: 1.21160 | AF200: 1.58642 | AG200: 1.58642 | AH200: 2.5167 | AJ200: 1.955 | AK200: -0.37482 | AL200: 7.01809 | AM200: 7.39291 | AN200: 7.39291 | AO200: 54.6552
... 4 more rows
